{"text_format":"1","workbook":"xlsx","n_sheets":11,"sheets":["その１","その１（非上場株式用）","その２","その２（131条１項の通知なし）","その３","その４","ツール処理シート","CSV出力用","補記シート","特殊ケース","プルダウン"],"not_rendered":{"charts":0,"images":0,"macros":1,"external_links":0,"defined_names":10,"comments":3,"pivot_tables":0},"unopened":[],"bounds":{"document_bytes":16777216,"sheet_cells":100000,"rows_first":2000,"rows_last":500,"rows_between":2000,"halvings":0,"cell_chars":16384,"cell_head_chars":4096},"cells_cut":0,"cells_raw":0,"read":"whole","date_system":"1900"}

{"sheet":"その１","index":0,"n_rows":57,"n_cols":36,"rows_kept":57,"cut":false,"hidden":false,"merged":[[27,0,28,4],[27,5,28,17],[25,0,26,4],[25,5,26,17],[25,18,26,22],[25,23,26,35],[20,0,20,4],[20,5,20,35],[21,0,22,4],[21,5,22,35],[23,0,24,4],[23,5,24,35],[56,0,59,35],[3,18,3,22],[3,23,3,35],[41,0,41,14],[41,15,41,35],[42,0,42,14],[5,18,5,22],[7,18,7,22],[6,18,6,22],[5,23,5,35],[6,23,6,35],[7,23,7,35],[16,0,16,35],[10,0,10,35],[46,0,46,14],[43,0,43,14],[44,0,44,14],[45,0,45,14],[31,0,32,17],[31,18,32,35],[33,0,34,17],[33,18,34,35]]}
[null,null,null,null,null,null,null,null,null,null,null,null,null,null,null,null,null,null,null,null,null,null,null,null,null,null,null,null,null,null,null,null,null,null,null,"ST01-02"]
[null,null,null,null,null,null,null,null,null,null,null,null,null,null,null,null,null,null,null,null,null,null,null,null,null,null,null,null,null,null,null,null,null,null,null,"（2024年11月1日版）"]
[]
["株式会社証券保管振替機構　御中",null,null,null,null,null,null,null,null,null,null,null,null,null,null,null,null,null,"提出日"]
[]
[null,null,null,null,null,null,null,null,null,null,null,null,null,null,null,null,null,null,"会社名"]
[null,null,null,null,null,null,null,null,null,null,null,null,null,null,null,null,null,null,"代表者役職名"]
[null,null,null,null,null,null,null,null,null,null,null,null,null,null,null,null,null,null,"代表者氏名"]
[]
[]
["株式等振替制度参加に係る届出書（その１）\n（株式等振替制度＜株式＞用）"]
[]
[]
["株式等振替制度に参加することに伴い、下記のとおり届出いたします。"]
[]
[]
["記"]
[]
[]
["１.登記上の商号、本店所在地並びに代表者の役職及び氏名など"]
["（商号フリガナ）"]
["商号",null,null,null,null,""]
[]
["本店所在地",null,null,null,null,""]
[]
["代表者役職名",null,null,null,null,null,null,null,null,null,null,null,null,null,null,null,null,null,"代表者氏名"]
[]
["法人番号"]
[]
[]
["２.同意しようとする株式の内容"]
["銘柄名称"]
[]
["株式の種類（注１）"]
[]
["（注１）普通株式（定款で特別の定めを設けていない株式）以外の場合には、「種類株式」を選択してください。なお、この場合には、本"]
["　　　　届出書のほか、「種類株式の内容について」の提出が必要です。"]
[]
[]
[]
["３.口座情報（注２）"]
["口座の種類",null,null,null,null,null,null,null,null,null,null,null,null,null,null,"加入者口座コード"]
["単元未満株式の買取請求に係る振替先口座"]
["取得請求権付株式の取得請求に係る振替先口座"]
["調整株式数（発行者分）の記録先口座"]
["新株予約権付社債に付された新株予約権が行使された場合に、自己株式を移転するときの振替元口座"]
["新株予約権が行使された場合に自己株式を移転するときの振替元口座"]
["（注２）記載いただく５つの口座は、すべて同一の口座でも構いません。"]
[null,null,null,null,null,null,null,null,null,null,null,null,null,null,null,null,null,null,null,null,null,null,null,null,null,null,null,null,null,null,null,null,null,null,null,"以　上"]
[]
[]
[]
[]
[]
[]
[]
["・当機構は、本書に記載された個人情報を、「社債、株式等の振替に関する法律」に基づき主務大臣から認可を受けた業務を円滑に遂行す\n　るため、利用させていただきます。\n・当機構の取り扱う個人情報、当機構の個人情報保護方針など当機構の個人情報保護に関する事項は、当機構ホームページに掲載されてお\n　りますので、適宜御参照ください。"]

{"sheet":"その１（非上場株式用）","index":1,"n_rows":66,"n_cols":36,"rows_kept":66,"cut":false,"hidden":true,"merged":[[6,18,6,22],[6,23,6,35],[46,0,46,1],[31,0,31,1],[0,0,1,11],[3,18,3,22],[3,23,3,35],[5,18,5,22],[5,23,5,35],[7,18,7,22],[7,23,7,35],[10,0,10,35],[16,0,16,35],[20,0,20,4],[20,5,20,35],[21,0,22,4],[38,20,39,35],[40,18,41,19],[21,5,22,35],[23,0,24,4],[23,5,24,35],[25,0,26,4],[25,5,26,35],[27,23,28,35],[29,0,30,4],[29,5,30,17],[29,18,30,22],[29,23,30,24],[29,25,30,28],[29,29,30,30],[29,31,30,34],[29,35,30,35],[40,20,41,35],[42,18,43,19],[42,20,43,35],[3,0,4,11],[55,0,55,14],[34,0,35,17],[34,18,35,35],[36,0,37,17],[36,18,37,35],[38,0,45,17],[38,18,39,19],[44,18,45,19],[44,20,45,35],[27,0,28,4],[27,5,28,17],[27,18,28,22],[65,0,68,35],[50,0,50,14],[50,15,50,35],[51,0,51,14],[52,0,52,14],[53,0,53,14],[54,0,54,14],[56,0,56,1]]}
[null,null,null,null,null,null,null,null,null,null,null,null,null,null,null,null,null,null,null,null,null,null,null,null,null,null,null,null,null,null,null,null,null,null,null,"ST01-02"]
[null,null,null,null,null,null,null,null,null,null,null,null,null,null,null,null,null,null,null,null,null,null,null,null,null,null,null,null,null,null,null,null,null,null,null,{"$f":"+その１!AJ2","v":"（2024年11月1日版）"}]
[]
["株式会社証券保管振替機構　御中",null,null,null,null,null,null,null,null,null,null,null,null,null,null,null,null,null,"提出日"]
[]
[null,null,null,null,null,null,null,null,null,null,null,null,null,null,null,null,null,null,"会社名"]
[null,null,null,null,null,null,null,null,null,null,null,null,null,null,null,null,null,null,"代表者役職名"]
[null,null,null,null,null,null,null,null,null,null,null,null,null,null,null,null,null,null,"代表者氏名"]
[]
[]
["株式等振替制度参加に係る届出書（その１）\n（株式等振替制度＜株式＞用）"]
[]
[]
["株式等振替制度に参加することに伴い、下記のとおり届出いたします。"]
[]
[]
["記"]
[]
[]
["１.登記上の商号、本店所在地並びに代表者の役職及び氏名など"]
["（商号フリガナ）"]
["商号"]
[]
["商号（英字）"]
[]
["本店所在地"]
[]
["代表者役職名",null,null,null,null,null,null,null,null,null,null,null,null,null,null,null,null,null,"代表者氏名"]
[]
["法人番号",null,null,null,null,null,null,null,null,null,null,null,null,null,null,null,null,null,"発行体コードの付番実績（注１）",null,null,null,null,null,null,"有",null,null,null,null,null,"無"]
[]
["（注１）",null,"本届出書の提出前に、上場または公募債を発行したことがある場合には、「有」に「○」を選択してください。"]
[]
["２.同意しようとする株式の内容"]
["銘柄名称"]
[]
["株式の種類（注２）"]
[]
["該当する非上場株式の取扱要件",null,null,null,null,null,null,null,null,null,null,null,null,null,null,null,null,null,null,null,"株主コミュニティが組成されている"]
[]
[null,null,null,null,null,null,null,null,null,null,null,null,null,null,null,null,null,null,null,null,"特定投資家向け銘柄制度（J-Ships）の対象となっている"]
[]
[null,null,null,null,null,null,null,null,null,null,null,null,null,null,null,null,null,null,null,null,"有価証券報告書を提出している"]
[]
[null,null,null,null,null,null,null,null,null,null,null,null,null,null,null,null,null,null,null,null,"振替株式等の発行者が発行する金融商品取引所に上場されていない株式"]
[]
["（注２）",null,"普通株式（定款で特別の定めを設けていない株式）以外の場合には、「種類株式」を選択してください。なお、この場合には、本"]
[null,null,"届出書のほか、「種類株式の内容について」の提出が必要です。"]
[]
["３.口座情報（注３）"]
["口座の種類",null,null,null,null,null,null,null,null,null,null,null,null,null,null,"加入者口座コード"]
["単元未満株式の買取請求に係る振替先口座"]
["取得請求権付株式の取得請求に係る振替先口座"]
["調整株式数（発行者分）の記録先口座"]
["新株予約権付社債に付された新株予約権が行使された場合に、自己株式を移転するときの振替元口座"]
["新株予約権が行使された場合に自己株式を移転するときの振替元口座"]
["（注３）",null,"記載いただく５つの口座は、すべて同一の口座でも構いません。"]
[null,null,null,null,null,null,null,null,null,null,null,null,null,null,null,null,null,null,null,null,null,null,null,null,null,null,null,null,null,null,null,null,null,null,null,"以　上"]
[]
[]
[]
[]
[]
[]
[]
["・当機構は、本書に記載された個人情報を、「社債、株式等の振替に関する法律」に基づき主務大臣から認可を受けた業務を円滑に遂行す\n　るため、利用させていただきます。\n・当機構の取り扱う個人情報、当機構の個人情報保護方針など当機構の個人情報保護に関する事項は、当機構ホームページに掲載されてお\n　りますので、適宜御参照ください。"]

{"sheet":"その２","index":2,"n_rows":73,"n_cols":74,"rows_kept":73,"cut":false,"hidden":false,"merged":[[49,33,50,35],[49,0,50,32],[53,0,53,1],[53,2,53,35],[52,0,52,1],[52,2,52,35],[51,0,51,1],[47,21,48,35],[45,21,46,35],[41,21,42,35],[41,18,42,20],[43,18,44,20],[45,18,46,20],[47,18,48,20],[41,0,48,17],[36,0,36,1],[37,0,37,1],[38,0,38,1],[43,21,44,35],[32,0,33,17],[34,0,35,17],[20,18,21,35],[22,18,23,35],[24,18,25,35],[26,18,27,35],[28,18,29,35],[30,18,31,35],[34,18,35,35],[32,18,33,35],[17,0,17,35],[20,0,21,17],[22,0,23,17],[24,0,25,17],[3,18,4,22],[5,18,6,22],[26,0,27,17],[28,0,29,17],[30,0,31,17],[72,38,75,73],[58,65,59,67],[58,68,59,73],[60,38,61,73],[62,38,63,46],[62,47,63,73],[64,38,65,46],[66,38,67,46],[64,47,65,73],[66,47,67,73],[68,38,68,39],[70,38,70,39],[58,0,59,17],[58,18,59,35],[62,0,63,17],[62,18,63,35],[56,18,57,35],[56,0,57,17],[56,38,57,55],[56,56,57,73],[58,38,59,55],[58,56,59,58],[58,59,59,64],[72,0,73,17],[72,18,73,35],[64,0,65,35],[66,0,67,17],[66,18,67,35],[68,0,69,17],[68,18,69,35],[70,0,71,17],[70,18,71,35],[11,38,12,73],[13,38,14,55],[13,56,14,58],[13,59,14,64],[13,65,14,67],[13,68,14,73],[0,18,1,22],[0,23,1,35],[0,0,1,17],[7,18,8,22],[3,23,4,35],[5,23,6,35],[7,23,8,35],[11,0,13,35],[3,38,4,73],[5,38,6,55],[5,56,6,73],[7,38,8,55],[7,56,8,73],[9,38,10,55],[9,56,10,58],[9,59,10,64],[9,65,10,67],[9,68,10,73],[17,38,18,55],[15,56,16,73],[17,56,18,73],[19,38,19,39],[21,38,21,39],[25,38,26,55],[27,38,28,55],[31,38,32,55],[29,38,30,73],[25,56,26,71],[25,72,26,73],[27,56,28,58],[27,59,28,64],[27,65,28,67],[27,68,28,73],[31,56,32,58],[31,59,32,64],[31,65,32,67],[31,68,32,73],[15,38,16,55],[35,47,36,52],[33,47,34,52],[33,53,34,73],[35,53,36,54],[35,55,36,56],[35,57,36,58],[35,59,36,60],[35,61,36,73],[37,53,38,73],[47,53,48,73],[49,47,50,52],[49,38,50,46],[33,38,48,46],[51,38,51,39],[54,38,55,55],[54,56,55,73],[39,53,40,54],[39,55,40,56],[39,57,40,58],[39,59,40,73],[41,53,42,73],[43,53,44,54],[43,55,44,56],[43,57,44,58],[43,59,44,60],[43,61,44,62],[43,63,44,64],[47,47,48,52],[45,47,46,52],[43,47,44,52],[41,47,42,52],[39,47,40,52],[37,47,38,52],[43,65,44,66],[43,67,44,73],[49,69,50,69],[49,70,50,70],[49,71,50,71],[49,72,50,72],[49,73,50,73],[49,53,50,53],[49,54,50,54],[49,55,50,55],[49,56,50,56],[49,57,50,57],[49,58,50,58],[49,59,50,59],[49,60,50,60],[49,61,50,61],[49,62,50,62],[49,63,50,63],[49,64,50,64],[49,65,50,65],[49,66,50,66],[49,67,50,67],[49,68,50,68],[45,53,46,73]]}
["株式会社証券保管振替機構　御中",null,null,null,null,null,null,null,null,null,null,null,null,null,null,null,null,null,"提出日",null,null,null,null,{"$f":"+TEXT(CONCATENATE(その１!$X$4,'その１（非上場株式用）'!$X$4),\"yyyy年m月d日\")","v":""},null,null,null,null,null,null,null,null,null,null,null,null,null,null,null,null,null,null,null,null,null,null,null,null,null,null,null,null,null,null,null,null,null,null,null,null,null,null,null,null,null,null,null,null,null,null,null,null,null,"ST01-02"]
[null,null,null,null,null,null,null,null,null,null,null,null,null,null,null,null,null,null,null,null,null,null,null,null,null,null,null,null,null,null,null,null,null,null,null,null,null,null,null,null,null,null,null,null,null,null,null,null,null,null,null,null,null,null,null,null,null,null,null,null,null,null,null,null,null,null,null,null,null,null,null,null,null,{"$f":"その１!AJ2","v":"（2024年11月1日版）"}]
[]
[null,null,null,null,null,null,null,null,null,null,null,null,null,null,null,null,null,null,"会社名",null,null,null,null,{"$f":"+CONCATENATE(その１!$X$6,'その１（非上場株式用）'!$X$6)","v":""},null,null,null,null,null,null,null,null,null,null,null,null,null,null,"その他定款に定める基準日及び行使できる権利"]
[]
[null,null,null,null,null,null,null,null,null,null,null,null,null,null,null,null,null,null,"代表者役職名",null,null,null,null,{"$f":"+CONCATENATE(その１!$X$7,'その１（非上場株式用）'!$X$7)","v":""},null,null,null,null,null,null,null,null,null,null,null,null,null,null,"　・基準日"]
[]
[null,null,null,null,null,null,null,null,null,null,null,null,null,null,null,null,null,null,"代表者氏名",null,null,null,null,{"$f":"+CONCATENATE(その１!$X$8,'その１（非上場株式用）'!$X$8)","v":""},null,null,null,null,null,null,null,null,null,null,null,null,null,null,"　・行使できる権利"]
[]
[null,null,null,null,null,null,null,null,null,null,null,null,null,null,null,null,null,null,null,null,null,null,null,null,null,null,null,null,null,null,null,null,null,null,null,null,null,null,"四半期会計期間の末日を株主確定日とする総株主通知請求の有無（注６）",null,null,null,null,null,null,null,null,null,null,null,null,null,null,null,null,null,"　",null,null,"有",null,null,null,null,null,null,null,null,"無"]
[]
["株式等振替制度参加に係る届出書（その２）\n（株式等振替制度＜株式＞用）",null,null,null,null,null,null,null,null,null,null,null,null,null,null,null,null,null,null,null,null,null,null,null,null,null,null,null,null,null,null,null,null,null,null,null,null,null,"四半期会計期間の末日を株主確定日とする総株主通知請求の有無について「有」を選択した場合のみ、以下の事項を記載してください。"]
[]
[null,null,null,null,null,null,null,null,null,null,null,null,null,null,null,null,null,null,null,null,null,null,null,null,null,null,null,null,null,null,null,null,null,null,null,null,null,null,"対象となる四半期会計期間の末日",null,null,null,null,null,null,null,null,null,null,null,null,null,null,null,null,null,"①",null,null,null,null,null,null,null,null,"②"]
[]
["株式等振替制度に参加することに伴い、下記のとおり届出いたします。",null,null,null,null,null,null,null,null,null,null,null,null,null,null,null,null,null,null,null,null,null,null,null,null,null,null,null,null,null,null,null,null,null,null,null,null,null,"請求理由（注７）",null,null,null,null,null,null,null,null,null,null,null,null,null,null,null,null,null,{"$f":"+IF(BE10=\"○\",プルダウン!$B$25,\"\")","v":""}]
[]
["記",null,null,null,null,null,null,null,null,null,null,null,null,null,null,null,null,null,null,null,null,null,null,null,null,null,null,null,null,null,null,null,null,null,null,null,null,null,"株主に関する情報の開示方法"]
[]
["１.取扱開始に係る日程（注１）",null,null,null,null,null,null,null,null,null,null,null,null,null,null,null,null,null,null,null,null,null,null,null,null,null,null,null,null,null,null,null,null,null,null,null,null,null,"（注６）",null,"四半期会計期間の末日が到来する都度、総株主通知（株主確定処理）を行う場合には、「有」を選択してください。"]
["振替法第131条第１項の通知日",null,null,null,null,null,null,null,null,null,null,null,null,null,null,null,null,null,null,null,null,null,null,null,null,null,null,null,null,null,null,null,null,null,null,null,null,null,null,null,"なお、取扱開始後に本請求を取り下げる場合には、別途の手続が必要となります。"]
[null,null,null,null,null,null,null,null,null,null,null,null,null,null,null,null,null,null,null,null,null,null,null,null,null,null,null,null,null,null,null,null,null,null,null,null,null,null,"（注７）",null,"「四半期末時点における議決権の状況等の株主に関する情報を、ホームページ等において適切に開示するため。」以外の理由で、"]
["上場承認日（注２）（注３）",null,null,null,null,null,null,null,null,null,null,null,null,null,null,null,null,null,null,null,null,null,null,null,null,null,null,null,null,null,null,null,null,null,null,null,null,null,null,null,"本請求を行うことはできません。"]
[]
["株主等による口座通知取次ぎ請求の受付締切日",null,null,null,null,null,null,null,null,null,null,null,null,null,null,null,null,null,null,null,null,null,null,null,null,null,null,null,null,null,null,null,null,null,null,null,null,null,"（３）単元株式に係る情報"]
[null,null,null,null,null,null,null,null,null,null,null,null,null,null,null,null,null,null,null,null,null,null,null,null,null,null,null,null,null,null,null,null,null,null,null,null,null,null,"単元株式数",null,null,null,null,null,null,null,null,null,null,null,null,null,null,null,null,null,null,null,null,null,null,null,null,null,null,null,null,null,null,null,null,null,"株"]
["口座通知取次ぎ受付締切日"]
[null,null,null,null,null,null,null,null,null,null,null,null,null,null,null,null,null,null,null,null,null,null,null,null,null,null,null,null,null,null,null,null,null,null,null,null,null,null,"単元未満株式の売渡制度の有無",null,null,null,null,null,null,null,null,null,null,null,null,null,null,null,null,null,null,null,null,"有",null,null,null,null,null,null,null,null,"無"]
["取扱開始日"]
[null,null,null,null,null,null,null,null,null,null,null,null,null,null,null,null,null,null,null,null,null,null,null,null,null,null,null,null,null,null,null,null,null,null,null,null,null,null,"単元未満株式の売渡制度の有無について「有」を選択した場合のみ、以下の事項を記載してください。"]
["一定の日\n（振替法第131条第１項第１号の一定の日）"]
[null,null,null,null,null,null,null,null,null,null,null,null,null,null,null,null,null,null,null,null,null,null,null,null,null,null,null,null,null,null,null,null,null,null,null,null,null,null,"新規記録直後からの売渡請求の受付可否（注８）",null,null,null,null,null,null,null,null,null,null,null,null,null,null,null,null,null,null,null,null,"可",null,null,null,null,null,null,null,null,"不可"]
["新規記録日"]
[null,null,null,null,null,null,null,null,null,null,null,null,null,null,null,null,null,null,null,null,null,null,null,null,null,null,null,null,null,null,null,null,null,null,null,null,null,null,"売渡代金の払込口座情報",null,null,null,null,null,null,null,null,"銀行名"]
["上場日（注３）"]
[null,null,null,null,null,null,null,null,null,null,null,null,null,null,null,null,null,null,null,null,null,null,null,null,null,null,null,null,null,null,null,null,null,null,null,null,null,null,null,null,null,null,null,null,null,null,null,"金融機関等コード"]
["（注１）",null,"株式移転、新設合併又は新設分割に伴うテクニカル上場銘柄については、記載不要です。"]
["（注２）",null,"特定取引所金融商品市場（いわゆるプロ向け市場）に係る発行者については、上場する予定の金融商品取引所による上場申請の公表日を記載してください。",null,null,null,null,null,null,null,null,null,null,null,null,null,null,null,null,null,null,null,null,null,null,null,null,null,null,null,null,null,null,null,null,null,null,null,null,null,null,null,null,null,null,null,null,"支店名"]
["（注３）",null,"非上場株式の場合には記載不要です。"]
[null,null,null,null,null,null,null,null,null,null,null,null,null,null,null,null,null,null,null,null,null,null,null,null,null,null,null,null,null,null,null,null,null,null,null,null,null,null,null,null,null,null,null,null,null,null,null,"支店コード"]
["２.上場取引所（注４）"]
["上場する金融商品取引所（注５）",null,null,null,null,null,null,null,null,null,null,null,null,null,null,null,null,null,null,null,null,"東京証券取引所",null,null,null,null,null,null,null,null,null,null,null,null,null,null,null,null,null,null,null,null,null,null,null,null,null,"預金種別"]
[]
[null,null,null,null,null,null,null,null,null,null,null,null,null,null,null,null,null,null,null,null,null,"名古屋証券取引所",null,null,null,null,null,null,null,null,null,null,null,null,null,null,null,null,null,null,null,null,null,null,null,null,null,"口座番号"]
[]
[null,null,null,null,null,null,null,null,null,null,null,null,null,null,null,null,null,null,null,null,null,"福岡証券取引所",null,null,null,null,null,null,null,null,null,null,null,null,null,null,null,null,null,null,null,null,null,null,null,null,null,"口座名義"]
[]
[null,null,null,null,null,null,null,null,null,null,null,null,null,null,null,null,null,null,null,null,null,"札幌証券取引所",null,null,null,null,null,null,null,null,null,null,null,null,null,null,null,null,null,null,null,null,null,null,null,null,null,"口座名義カナ"]
[]
["上場する市場がプロ向け市場に該当する場合には、本欄にも○を選択してください。",null,null,null,null,null,null,null,null,null,null,null,null,null,null,null,null,null,null,null,null,null,null,null,null,null,null,null,null,null,null,null,null,null,null,null,null,null,"振替元会社口座情報",null,null,null,null,null,null,null,null,"加入者口座コード"]
[]
["（注４）",null,"非上場株式の場合には記載不要です。",null,null,null,null,null,null,null,null,null,null,null,null,null,null,null,null,null,null,null,null,null,null,null,null,null,null,null,null,null,null,null,null,null,null,null,"（注８）",null,"「不可」を選択した場合には、売渡請求の受付を始めるにあたって、別途届出が必要となります。"]
["（注５）",null,"上場する金融商品取引所をすべて選択してください。"]
[null,null,null,null,null,null,null,null,null,null,null,null,null,null,null,null,null,null,null,null,null,null,null,null,null,null,null,null,null,null,null,null,null,null,null,null,null,null,"（４）その他"]
["３.会社・銘柄情報",null,null,null,null,null,null,null,null,null,null,null,null,null,null,null,null,null,null,null,null,null,null,null,null,null,null,null,null,null,null,null,null,null,null,null,null,null,"株主名簿管理人"]
["（１）決算期"]
["決算期",null,null,null,null,null,null,null,null,null,null,null,null,null,null,null,null,null,null,null,null,null,null,null,null,null,null,null,null,null,null,null,null,null,null,null,null,null,"特別口座を開設する口座管理機関"]
[]
["中間決算期",null,null,null,null,null,null,null,null,null,null,null,null,null,null,null,null,null,null,null,null,null,null,null,null,null,null,null,null,null,null,null,null,null,null,null,null,null,"外国人保有制限銘柄への該当",null,null,null,null,null,null,null,null,null,null,null,null,null,null,null,null,null,null,null,null,"有",null,null,null,null,null,null,null,null,"無"]
[]
[null,null,null,null,null,null,null,null,null,null,null,null,null,null,null,null,null,null,null,null,null,null,null,null,null,null,null,null,null,null,null,null,null,null,null,null,null,null,"外国人保有制限銘柄への該当について「有」を選択した場合のみ、以下の事項を記載してください。"]
["（２）基準日（株主確定日）"]
["定款に定める定時株主総会に係る基準日",null,null,null,null,null,null,null,null,null,null,null,null,null,null,null,null,null,null,null,null,null,null,null,null,null,null,null,null,null,null,null,null,null,null,null,null,null,"商号（英字表記）"]
[]
["定款に定める剰余金の配当に係る基準日",null,null,null,null,null,null,null,null,null,null,null,null,null,null,null,null,null,null,null,null,null,null,null,null,null,null,null,null,null,null,null,null,null,null,null,null,null,"制限の内容（注９）"]
[]
["　・期末配当",null,null,null,null,null,null,null,null,null,null,null,null,null,null,null,null,null,null,null,null,null,null,null,null,null,null,null,null,null,null,null,null,null,null,null,null,null,"制限を行う根拠法令（注10）"]
[]
["　・中間配当",null,null,null,null,null,null,null,null,null,null,null,null,null,null,null,null,null,null,null,null,null,null,null,null,null,null,null,null,null,null,null,null,null,null,null,null,null,"（注９）",null,"「外国人等の議決権が当社の議決権の総数の５分の１以上を占める場合には株主名簿に記載することを拒む」等の制限に係る具体"]
[null,null,null,null,null,null,null,null,null,null,null,null,null,null,null,null,null,null,null,null,null,null,null,null,null,null,null,null,null,null,null,null,null,null,null,null,null,null,null,null,"的内容を記載してください。"]
["　・第１四半期配当",null,null,null,null,null,null,null,null,null,null,null,null,null,null,null,null,null,null,null,null,null,null,null,null,null,null,null,null,null,null,null,null,null,null,null,null,null,"（注10）",null,"「航空法第○○条」、「放送法第○○条」等の制限の根拠となる法令を記載してください。"]
[null,null,null,null,null,null,null,null,null,null,null,null,null,null,null,null,null,null,null,null,null,null,null,null,null,null,null,null,null,null,null,null,null,null,null,null,null,null,null,null,null,null,null,null,null,null,null,null,null,null,null,null,null,null,null,null,null,null,null,null,null,null,null,null,null,null,null,null,null,null,null,null,null,"以　上"]
["　・第３四半期配当",null,null,null,null,null,null,null,null,null,null,null,null,null,null,null,null,null,null,null,null,null,null,null,null,null,null,null,null,null,null,null,null,null,null,null,null,null,"・当機構は、本書に記載された個人情報を、「社債、株式等の振替に関する法律」に基づき主務大臣から認可を受けた業務を円滑に遂行す\n　るため、利用させていただきます。\n・当機構の取り扱う個人情報、当機構の個人情報保護方針など当機構の個人情報保護に関する事項は、当機構ホームページに掲載されてお\n　りますので、適宜御参照ください。"]

{"sheet":"その２（131条１項の通知なし）","index":3,"n_rows":73,"n_cols":74,"rows_kept":73,"cut":false,"hidden":true,"merged":[[5,18,6,22],[5,23,6,35],[5,38,6,55],[5,56,6,73],[7,18,8,22],[7,23,8,35],[7,38,8,55],[7,56,8,73],[0,0,1,17],[0,18,1,22],[0,23,1,35],[3,18,4,22],[3,23,4,35],[3,38,4,73],[9,38,10,55],[9,56,10,58],[9,59,10,64],[9,65,10,67],[9,68,10,73],[11,0,13,35],[11,38,12,73],[13,38,14,55],[13,56,14,58],[13,59,14,64],[19,38,19,39],[20,18,21,35],[21,38,21,39],[20,0,21,17],[13,65,14,67],[13,68,14,73],[15,38,16,55],[15,56,16,73],[17,0,17,35],[17,38,18,55],[17,56,18,73],[22,0,23,17],[22,18,23,35],[25,38,26,55],[25,56,26,71],[25,72,26,73],[24,0,25,17],[24,18,25,35],[27,38,28,55],[27,56,28,58],[27,59,28,64],[27,65,28,67],[27,68,28,73],[26,0,27,17],[26,18,27,35],[29,38,30,73],[28,0,29,17],[28,18,29,35],[31,38,32,55],[31,56,32,58],[31,59,32,64],[34,0,34,1],[31,65,32,67],[31,68,32,73],[30,0,31,17],[30,18,31,35],[33,38,48,46],[33,47,34,52],[33,53,34,73],[32,0,33,17],[32,18,33,35],[35,47,36,52],[35,0,35,1],[37,47,38,52],[37,53,38,73],[36,0,36,1],[39,47,40,52],[39,53,40,54],[39,55,40,56],[35,53,36,54],[35,55,36,56],[35,57,36,58],[35,59,36,60],[35,61,36,73],[43,57,44,58],[43,59,44,60],[43,61,44,62],[43,63,44,64],[43,65,44,66],[43,67,44,73],[47,47,48,52],[47,53,48,73],[49,38,50,46],[49,47,50,52],[39,0,46,17],[39,18,40,20],[39,21,40,35],[41,47,42,52],[41,53,42,73],[41,18,42,20],[41,21,42,35],[49,64,50,64],[49,65,50,65],[43,18,44,20],[43,21,44,35],[45,47,46,52],[45,53,46,73],[43,47,44,52],[43,53,44,54],[43,55,44,56],[45,18,46,20],[45,21,46,35],[39,57,40,58],[39,59,40,73],[54,38,55,55],[54,56,55,73],[54,0,55,17],[54,18,55,35],[56,38,57,55],[56,56,57,73],[49,0,49,1],[51,38,51,39],[50,0,50,1],[50,2,50,35],[51,0,51,1],[51,2,51,35],[49,72,50,72],[49,73,50,73],[49,66,50,66],[49,67,50,67],[49,68,50,68],[49,69,50,69],[49,70,50,70],[49,71,50,71],[49,60,50,60],[49,61,50,61],[49,62,50,62],[49,63,50,63],[66,47,67,73],[58,68,59,73],[60,38,61,73],[60,0,61,17],[60,18,61,35],[62,38,63,46],[62,47,63,73],[56,0,57,17],[56,18,57,35],[58,38,59,55],[58,56,59,58],[58,59,59,64],[58,65,59,67],[47,0,48,32],[47,33,48,35],[70,0,71,17],[70,18,71,35],[72,38,75,73],[49,53,50,53],[49,54,50,54],[49,55,50,55],[49,56,50,56],[49,57,50,57],[49,58,50,58],[49,59,50,59],[66,0,67,17],[66,18,67,35],[68,38,68,39],[68,0,69,17],[68,18,69,35],[70,38,70,39],[62,0,63,35],[64,38,65,46],[64,47,65,73],[64,0,65,17],[64,18,65,35],[66,38,67,46]]}
["株式会社証券保管振替機構　御中",null,null,null,null,null,null,null,null,null,null,null,null,null,null,null,null,null,"提出日",null,null,null,null,{"$f":"+TEXT(CONCATENATE(その１!$X$4,'その１（非上場株式用）'!$X$4),\"yyyy年m月d日\")","v":""},null,null,null,null,null,null,null,null,null,null,null,null,null,null,null,null,null,null,null,null,null,null,null,null,null,null,null,null,null,null,null,null,null,null,null,null,null,null,null,null,null,null,null,null,null,null,null,null,null,"ST01-02"]
[null,null,null,null,null,null,null,null,null,null,null,null,null,null,null,null,null,null,null,null,null,null,null,null,null,null,null,null,null,null,null,null,null,null,null,null,null,null,null,null,null,null,null,null,null,null,null,null,null,null,null,null,null,null,null,null,null,null,null,null,null,null,null,null,null,null,null,null,null,null,null,null,null,{"$f":"その１!AJ2","v":"（2024年11月1日版）"}]
[]
[null,null,null,null,null,null,null,null,null,null,null,null,null,null,null,null,null,null,"会社名",null,null,null,null,{"$f":"+CONCATENATE(その１!$X$6,'その１（非上場株式用）'!$X$6)","v":""},null,null,null,null,null,null,null,null,null,null,null,null,null,null,"その他定款に定める基準日及び行使できる権利"]
[]
[null,null,null,null,null,null,null,null,null,null,null,null,null,null,null,null,null,null,"代表者役職名",null,null,null,null,{"$f":"+CONCATENATE(その１!$X$7,'その１（非上場株式用）'!$X$7)","v":""},null,null,null,null,null,null,null,null,null,null,null,null,null,null,"　・基準日"]
[]
[null,null,null,null,null,null,null,null,null,null,null,null,null,null,null,null,null,null,"代表者氏名",null,null,null,null,{"$f":"+CONCATENATE(その１!$X$8,'その１（非上場株式用）'!$X$8)","v":""},null,null,null,null,null,null,null,null,null,null,null,null,null,null,"　・行使できる権利"]
[]
[null,null,null,null,null,null,null,null,null,null,null,null,null,null,null,null,null,null,null,null,null,null,null,null,null,null,null,null,null,null,null,null,null,null,null,null,null,null,"四半期会計期間の末日を株主確定日とする総株主通知請求の有無（注６）",null,null,null,null,null,null,null,null,null,null,null,null,null,null,null,null,null,null,null,null,"有",null,null,null,null,null,null,null,null,"無"]
[]
["株式等振替制度参加に係る届出書（その２）\n（株式等振替制度＜株式＞用）",null,null,null,null,null,null,null,null,null,null,null,null,null,null,null,null,null,null,null,null,null,null,null,null,null,null,null,null,null,null,null,null,null,null,null,null,null,"四半期会計期間の末日を株主確定日とする総株主通知請求の有無について「有」を選択した場合のみ、以下の事項を記載してください。"]
[]
[null,null,null,null,null,null,null,null,null,null,null,null,null,null,null,null,null,null,null,null,null,null,null,null,null,null,null,null,null,null,null,null,null,null,null,null,null,null,"対象となる四半期会計期間の末日",null,null,null,null,null,null,null,null,null,null,null,null,null,null,null,null,null,"①",null,null,null,null,null,null,null,null,"②"]
[]
["株式等振替制度に参加することに伴い、下記のとおり届出いたします。",null,null,null,null,null,null,null,null,null,null,null,null,null,null,null,null,null,null,null,null,null,null,null,null,null,null,null,null,null,null,null,null,null,null,null,null,null,"請求理由（注７）",null,null,null,null,null,null,null,null,null,null,null,null,null,null,null,null,null,{"$f":"+IF(BE10=\"○\",プルダウン!$B$25,\"\")","v":""}]
[]
["記",null,null,null,null,null,null,null,null,null,null,null,null,null,null,null,null,null,null,null,null,null,null,null,null,null,null,null,null,null,null,null,null,null,null,null,null,null,"株主に関する情報の開示方法"]
[]
["１.取扱開始に係る日程（注１）",null,null,null,null,null,null,null,null,null,null,null,null,null,null,null,null,null,null,null,null,null,null,null,null,null,null,null,null,null,null,null,null,null,null,null,null,null,"（注６）",null,"四半期会計期間の末日が到来する都度、総株主通知（株主確定処理）を行う場合には、「有」を選択してください。"]
["上場承認日（注２）（注３）",null,null,null,null,null,null,null,null,null,null,null,null,null,null,null,null,null,null,null,null,null,null,null,null,null,null,null,null,null,null,null,null,null,null,null,null,null,null,null,"なお、取扱開始後に本請求を取り下げる場合には、別途の手続が必要となります。"]
[null,null,null,null,null,null,null,null,null,null,null,null,null,null,null,null,null,null,null,null,null,null,null,null,null,null,null,null,null,null,null,null,null,null,null,null,null,null,"（注７）",null,"「四半期末時点における議決権の状況等の株主に関する情報を、ホームページ等において適切に開示するため。」以外の理由で、"]
["株主等による口座通知取次ぎ請求の受付締切日",null,null,null,null,null,null,null,null,null,null,null,null,null,null,null,null,null,null,null,null,null,null,null,null,null,null,null,null,null,null,null,null,null,null,null,null,null,null,null,"本請求を行うことはできません。"]
[]
["口座通知取次ぎ受付締切日",null,null,null,null,null,null,null,null,null,null,null,null,null,null,null,null,null,null,null,null,null,null,null,null,null,null,null,null,null,null,null,null,null,null,null,null,null,"（３）単元株式に係る情報"]
[null,null,null,null,null,null,null,null,null,null,null,null,null,null,null,null,null,null,null,null,null,null,null,null,null,null,null,null,null,null,null,null,null,null,null,null,null,null,"単元株式数",null,null,null,null,null,null,null,null,null,null,null,null,null,null,null,null,null,null,null,null,null,null,null,null,null,null,null,null,null,null,null,null,null,"株"]
["取扱開始日"]
[null,null,null,null,null,null,null,null,null,null,null,null,null,null,null,null,null,null,null,null,null,null,null,null,null,null,null,null,null,null,null,null,null,null,null,null,null,null,"単元未満株式の売渡制度の有無",null,null,null,null,null,null,null,null,null,null,null,null,null,null,null,null,null,null,null,null,"有",null,null,null,null,null,null,null,null,"無"]
["一定の日\n（振替法第131条第１項第１号の通知は実施しません）"]
[null,null,null,null,null,null,null,null,null,null,null,null,null,null,null,null,null,null,null,null,null,null,null,null,null,null,null,null,null,null,null,null,null,null,null,null,null,null,"単元未満株式の売渡制度の有無について「有」を選択した場合のみ、以下の事項を記載してください。"]
["新規記録日"]
[null,null,null,null,null,null,null,null,null,null,null,null,null,null,null,null,null,null,null,null,null,null,null,null,null,null,null,null,null,null,null,null,null,null,null,null,null,null,"新規記録直後からの売渡請求の受付可否（注８）",null,null,null,null,null,null,null,null,null,null,null,null,null,null,null,null,null,null,null,null,"可",null,null,null,null,null,null,null,null,"不可"]
["上場日（注３）"]
[null,null,null,null,null,null,null,null,null,null,null,null,null,null,null,null,null,null,null,null,null,null,null,null,null,null,null,null,null,null,null,null,null,null,null,null,null,null,"売渡代金の払込口座情報",null,null,null,null,null,null,null,null,"銀行名"]
["（注１）",null,"株式移転、新設合併又は新設分割に伴うテクニカル上場銘柄については、記載不要です。"]
["（注２）",null,"特定取引所金融商品市場（いわゆるプロ向け市場）に係る発行者については、上場する予定の金融商品取引所による上場申請の公表日を記載してください。",null,null,null,null,null,null,null,null,null,null,null,null,null,null,null,null,null,null,null,null,null,null,null,null,null,null,null,null,null,null,null,null,null,null,null,null,null,null,null,null,null,null,null,null,"金融機関等コード"]
["（注３）",null,"非上場株式の場合は記載不要です。"]
[null,null,null,null,null,null,null,null,null,null,null,null,null,null,null,null,null,null,null,null,null,null,null,null,null,null,null,null,null,null,null,null,null,null,null,null,null,null,null,null,null,null,null,null,null,null,null,"支店名"]
["２.上場取引所（注４）"]
["上場する金融商品取引所（注５）",null,null,null,null,null,null,null,null,null,null,null,null,null,null,null,null,null,null,null,null,"東京証券取引所",null,null,null,null,null,null,null,null,null,null,null,null,null,null,null,null,null,null,null,null,null,null,null,null,null,"支店コード"]
[]
[null,null,null,null,null,null,null,null,null,null,null,null,null,null,null,null,null,null,null,null,null,"名古屋証券取引所",null,null,null,null,null,null,null,null,null,null,null,null,null,null,null,null,null,null,null,null,null,null,null,null,null,"預金種別"]
[]
[null,null,null,null,null,null,null,null,null,null,null,null,null,null,null,null,null,null,null,null,null,"福岡証券取引所",null,null,null,null,null,null,null,null,null,null,null,null,null,null,null,null,null,null,null,null,null,null,null,null,null,"口座番号"]
[]
[null,null,null,null,null,null,null,null,null,null,null,null,null,null,null,null,null,null,null,null,null,"札幌証券取引所",null,null,null,null,null,null,null,null,null,null,null,null,null,null,null,null,null,null,null,null,null,null,null,null,null,"口座名義"]
[]
["上場する市場がプロ向け市場に該当する場合は、本欄にも○を選択してください。",null,null,null,null,null,null,null,null,null,null,null,null,null,null,null,null,null,null,null,null,null,null,null,null,null,null,null,null,null,null,null,null,null,null,null,null,null,null,null,null,null,null,null,null,null,null,"口座名義カナ"]
[]
["（注４）",null,"非上場株式の場合は記載不要です。",null,null,null,null,null,null,null,null,null,null,null,null,null,null,null,null,null,null,null,null,null,null,null,null,null,null,null,null,null,null,null,null,null,null,null,"振替元会社口座情報",null,null,null,null,null,null,null,null,"加入者口座コード"]
["（注５）",null,"上場する金融商品取引所をすべて選択してください。"]
[null,null,null,null,null,null,null,null,null,null,null,null,null,null,null,null,null,null,null,null,null,null,null,null,null,null,null,null,null,null,null,null,null,null,null,null,null,null,"（注８）",null,"「不可」を選択した場合には、売渡請求の受付を始めるにあたって、別途届出が必要となります。"]
["３.会社・銘柄情報"]
["（１）決算期",null,null,null,null,null,null,null,null,null,null,null,null,null,null,null,null,null,null,null,null,null,null,null,null,null,null,null,null,null,null,null,null,null,null,null,null,null,"（４）その他"]
["決算期",null,null,null,null,null,null,null,null,null,null,null,null,null,null,null,null,null,null,null,null,null,null,null,null,null,null,null,null,null,null,null,null,null,null,null,null,null,"株主名簿管理人"]
[]
["中間決算期",null,null,null,null,null,null,null,null,null,null,null,null,null,null,null,null,null,null,null,null,null,null,null,null,null,null,null,null,null,null,null,null,null,null,null,null,null,"特別口座を開設する口座管理機関"]
[]
[null,null,null,null,null,null,null,null,null,null,null,null,null,null,null,null,null,null,null,null,null,null,null,null,null,null,null,null,null,null,null,null,null,null,null,null,null,null,"外国人保有制限銘柄への該当",null,null,null,null,null,null,null,null,null,null,null,null,null,null,null,null,null,null,null,null,"有",null,null,null,null,null,"　",null,null,"無"]
["（２）基準日（株主確定日）"]
["定款に定める定時株主総会に係る基準日",null,null,null,null,null,null,null,null,null,null,null,null,null,null,null,null,null,null,null,null,null,null,null,null,null,null,null,null,null,null,null,null,null,null,null,null,null,"外国人保有制限銘柄への該当について「有」を選択した場合のみ、以下の事項を記載してください。"]
[]
["定款に定める剰余金の配当に係る基準日",null,null,null,null,null,null,null,null,null,null,null,null,null,null,null,null,null,null,null,null,null,null,null,null,null,null,null,null,null,null,null,null,null,null,null,null,null,"商号（英字表記）"]
[]
["　・期末配当",null,null,null,null,null,null,null,null,null,null,null,null,null,null,null,null,null,null,null,null,null,null,null,null,null,null,null,null,null,null,null,null,null,null,null,null,null,"制限の内容（注９）"]
[]
["　・中間配当",null,null,null,null,null,null,null,null,null,null,null,null,null,null,null,null,null,null,null,null,null,null,null,null,null,null,null,null,null,null,null,null,null,null,null,null,null,"制限を行う根拠法令（注10）"]
[]
["　・第１四半期配当",null,null,null,null,null,null,null,null,null,null,null,null,null,null,null,null,null,null,null,null,null,null,null,null,null,null,null,null,null,null,null,null,null,null,null,null,null,"（注９）",null,"「外国人等の議決権が当社の議決権の総数の５分の１以上を占める場合には株主名簿に記載することを拒む」等の制限に係る具体"]
[null,null,null,null,null,null,null,null,null,null,null,null,null,null,null,null,null,null,null,null,null,null,null,null,null,null,null,null,null,null,null,null,null,null,null,null,null,null,"　　　　的内容を記載してください。",null,"的内容を記載してください。"]
["　・第３四半期配当",null,null,null,null,null,null,null,null,null,null,null,null,null,null,null,null,null,null,null,null,null,null,null,null,null,null,null,null,null,null,null,null,null,null,null,null,null,"（注10）",null,"「航空法第○○条」、「放送法第○○条」等の制限の根拠となる法令を記載してください。"]
[null,null,null,null,null,null,null,null,null,null,null,null,null,null,null,null,null,null,null,null,null,null,null,null,null,null,null,null,null,null,null,null,null,null,null,null,null,null,null,null,null,null,null,null,null,null,null,null,null,null,null,null,null,null,null,null,null,null,null,null,null,null,null,null,null,null,null,null,null,null,null,null,null,"以　上"]
[null,null,null,null,null,null,null,null,null,null,null,null,null,null,null,null,null,null,null,null,null,null,null,null,null,null,null,null,null,null,null,null,null,null,null,null,null,null,"・当機構は、本書に記載された個人情報を、「社債、株式等の振替に関する法律」に基づき主務大臣から認可を受けた業務を円滑に遂行す\n　るため、利用させていただきます。\n・当機構の取り扱う個人情報、当機構の個人情報保護方針など当機構の個人情報保護に関する事項は、当機構ホームページに掲載されてお\n　りますので、適宜御参照ください。"]

{"sheet":"その３","index":4,"n_rows":66,"n_cols":36,"rows_kept":66,"cut":false,"hidden":false,"merged":[[7,18,7,22],[7,23,7,35],[10,0,10,35],[16,0,16,35],[30,0,31,17],[30,18,31,33],[30,34,31,35],[22,0,22,1],[20,0,21,17],[20,18,21,33],[20,34,21,35],[28,0,29,17],[28,18,29,33],[28,34,29,35],[3,18,3,22],[3,23,3,35],[5,18,5,22],[5,23,5,35],[6,18,6,22],[6,23,6,35],[32,0,33,17],[32,18,33,33],[32,34,33,35],[46,0,47,17],[46,18,47,35],[42,0,43,17],[42,18,43,20],[34,0,34,1],[35,0,35,1],[42,21,43,26],[42,27,43,29],[42,30,43,35],[44,0,45,35],[63,0,63,1],[65,0,68,35],[60,0,61,17],[60,18,61,35],[48,0,49,17],[48,18,49,33],[48,34,49,35],[50,25,51,28],[50,29,51,35],[52,18,53,35],[52,0,53,17],[54,0,55,17],[54,18,55,20],[54,21,55,26],[54,27,55,29],[54,30,55,35],[56,0,57,17],[56,18,57,35],[58,0,59,35],[50,18,51,24],[62,0,62,1],[50,0,51,17]]}
[null,null,null,null,null,null,null,null,null,null,null,null,null,null,null,null,null,null,null,null,null,null,null,null,null,null,null,null,null,null,null,null,null,null,null,"ST01-02"]
[null,null,null,null,null,null,null,null,null,null,null,null,null,null,null,null,null,null,null,null,null,null,null,null,null,null,null,null,null,null,null,null,null,null,null,{"$f":"その１!AJ2","v":"（2024年11月1日版）"}]
[]
["株式会社証券保管振替機構　御中",null,null,null,null,null,null,null,null,null,null,null,null,null,null,null,null,null,"提出日",null,null,null,null,{"$f":"+TEXT(CONCATENATE(その１!$X$4,'その１（非上場株式用）'!$X$4),\"yyyy年m月d日\")","v":""}]
[]
[null,null,null,null,null,null,null,null,null,null,null,null,null,null,null,null,null,null,"会社名",null,null,null,null,{"$f":"+CONCATENATE(その１!$X$6,'その１（非上場株式用）'!$X$6)","v":""}]
[null,null,null,null,null,null,null,null,null,null,null,null,null,null,null,null,null,null,"代表者役職名",null,null,null,null,{"$f":"+CONCATENATE(その１!$X$7,'その１（非上場株式用）'!$X$7)","v":""}]
[null,null,null,null,null,null,null,null,null,null,null,null,null,null,null,null,null,null,"代表者氏名",null,null,null,null,{"$f":"+CONCATENATE(その１!$X$8,'その１（非上場株式用）'!$X$8)","v":""}]
[]
[]
["株式等振替制度参加に係る届出書（その３）\n（株式等振替制度＜株式＞用）"]
[]
[]
["株式等振替制度に参加することに伴い、下記のとおり届出いたします。"]
[]
[]
["記"]
[]
[]
["１.新規記録株式数"]
["新規記録予定株式数（注１）",null,null,null,null,null,null,null,null,null,null,null,null,null,null,null,null,null,null,null,null,null,null,null,null,null,null,null,null,null,null,null,null,null,"株"]
[]
["（注１）",null,"既発行の株式数に、公募により発行する株式数を加えた数を記載してください。公募を行わない場合には、既発行の株式数を記載し"]
[null,null,"てください。なお、組織再編に伴うテクニカル上場銘柄については、記載不要です。"]
[]
[]
[]
["２.既発行情報"]
["既発行の株式数（注２）",null,null,null,null,null,null,null,null,null,null,null,null,null,null,null,null,null,null,null,null,null,null,null,null,null,null,null,null,null,null,null,null,null,"株"]
[]
["株主数（注３）",null,null,null,null,null,null,null,null,null,null,null,null,null,null,null,null,null,null,null,null,null,null,null,null,null,null,null,null,null,null,null,null,null,"人"]
[]
["株券喪失登録されている株式数",null,null,null,null,null,null,null,null,null,null,null,null,null,null,null,null,null,null,null,null,null,null,null,null,null,null,null,null,null,null,null,null,null,"株"]
[]
["（注２）",null,"株式移転、新設合併又は新設分割に伴うテクニカル上場銘柄については、記載不要です。"]
["（注３）",null,"公募・売出しにより増加することが見込まれる株主数は含まず、既存の株主数を記載してください。なお、取扱開始日から手数料"]
[null,null,"計算の対象月の月末までに株主確定日が到来していない場合には、当機構は、届出された株主数により、振替制度利用料の算定を"]
[null,null,"行います。なお、組織再編に伴うテクニカル上場銘柄については、別途「取扱開始日における株主等の数に係る届出書」を提出い"]
[null,null,"ただくため、記載不要です。"]
[]
[]
["３.公募増資に係る情報"]
["公募増資の実施有無",null,null,null,null,null,null,null,null,null,null,null,null,null,null,null,null,null,null,null,null,"有",null,null,null,null,null,"　",null,null,"無"]
[]
["公募増資の実施有無について「有」を選択した場合のみ、以下の事項を記載してください。"]
[]
["条件決定日（注４）"]
[]
["発行新株式数",null,null,null,null,null,null,null,null,null,null,null,null,null,null,null,null,null,null,null,null,null,null,null,null,null,null,null,null,null,null,null,null,null,"株"]
[]
["申込期日（申込期間）",null,null,null,null,null,null,null,null,null,null,null,null,null,null,null,null,null,null,null,null,null,null,null,null,"～"]
[]
["払込期日"]
[]
["発行時ＤＶＰ方式の利用の有無",null,null,null,null,null,null,null,null,null,null,null,null,null,null,null,null,null,null,null,null,"有",null,null,null,null,null,null,null,null,"無"]
[]
["引受主幹事証券会社（注５）"]
[]
["発行時ＤＶＰ方式の利用の有無について「有」を選択した場合のみ、以下の事項を記載してください。"]
[]
["払込取扱銀行（注５）"]
[]
["（注４）",null,"条件決定後、訂正有価証券届出書の提出が必要です（Targetほふりサイトから）。"]
["（注５）",null,"法人格を含め正確に記載してください。払込取扱銀行については、支店名の記載は不要です。"]
[null,null,null,null,null,null,null,null,null,null,null,null,null,null,null,null,null,null,null,null,null,null,null,null,null,null,null,null,null,null,null,null,null,null,null,"以　上"]
["・当機構は、本書に記載された個人情報を、「社債、株式等の振替に関する法律」に基づき主務大臣から認可を受けた業務を円滑に遂行す\n　るため、利用させていただきます。\n・当機構の取り扱う個人情報、当機構の個人情報保護方針など当機構の個人情報保護に関する事項は、当機構ホームページに掲載されてお\n　りますので、適宜御参照ください。"]

{"sheet":"その４","index":5,"n_rows":63,"n_cols":36,"rows_kept":63,"cut":false,"hidden":false,"merged":[[22,5,23,19],[38,13,39,14],[34,5,35,19],[36,7,36,8],[38,15,39,17],[36,9,36,10],[36,11,36,13],[37,5,37,35],[38,18,39,35],[3,18,3,22],[3,23,3,35],[5,18,5,22],[5,23,5,35],[6,18,6,22],[6,23,6,35],[7,18,7,22],[7,23,7,35],[10,0,10,35],[16,0,16,35],[24,18,25,35],[24,0,25,4],[20,0,21,4],[20,5,21,19],[24,5,25,7],[22,0,23,4],[20,20,21,35],[22,20,23,35],[24,8,25,9],[24,10,25,12],[24,13,25,14],[24,15,25,17],[26,0,26,1],[40,0,40,1],[49,0,49,1],[62,0,65,35],[47,0,48,4],[47,20,48,35],[47,5,48,19],[34,20,35,35],[36,14,36,35],[38,0,39,4],[36,0,37,4],[36,5,36,6],[34,0,35,4],[38,5,39,7],[38,8,39,9],[38,10,39,12]]}
[null,null,null,null,null,null,null,null,null,null,null,null,null,null,null,null,null,null,null,null,null,null,null,null,null,null,null,null,null,null,null,null,null,null,null,"ST01-02"]
[null,null,null,null,null,null,null,null,null,null,null,null,null,null,null,null,null,null,null,null,null,null,null,null,null,null,null,null,null,null,null,null,null,null,null,{"$f":"その１!AJ2","v":"（2024年11月1日版）"}]
[]
["株式会社証券保管振替機構　御中",null,null,null,null,null,null,null,null,null,null,null,null,null,null,null,null,null,"提出日",null,null,null,null,{"$f":"IF(その１!$X$4=\"\",\"\",その１!$X$4)","v":""}]
[]
[null,null,null,null,null,null,null,null,null,null,null,null,null,null,null,null,null,null,"会社名",null,null,null,null,{"$f":"IF(その１!$X$6=\"\",\"\",その１!$X$6)","v":""}]
[null,null,null,null,null,null,null,null,null,null,null,null,null,null,null,null,null,null,"代表者役職名",null,null,null,null,{"$f":"IF(その１!$X$7=\"\",\"\",その１!$X$7)","v":""}]
[null,null,null,null,null,null,null,null,null,null,null,null,null,null,null,null,null,null,"代表者氏名",null,null,null,null,{"$f":"IF(その１!$X$8=\"\",\"\",その１!$X$8)","v":""}]
[]
[]
["株式等振替制度参加に係る届出書（その４）\n（株式等振替制度＜株式＞用）"]
[]
[]
["株式等振替制度に参加することに伴い、下記のとおり届出いたします。"]
[]
[]
["記"]
[]
[]
["１.情報取扱責任者（注１）"]
["役職名"]
[]
["氏名"]
[]
["電話番号",null,null,null,null,null,null,null,"-",null,null,null,null,"-"]
[]
["（注１）",null,"機構に対する通知又は機構が行う照会に対する報告その他機構との間の連絡を掌る者を指します。機構との連絡担当部署の部長又"]
[null,null,"はそれに準じる役職の方を選任してください。なお、選任いただいた情報取扱責任者を変更する場合には、別途届出が必要となり"]
[null,null,"ます。"]
[]
[]
[]
[]
["２.機構との連絡担当部署（注２）"]
["部署名"]
[]
["住所",null,null,null,null,"〒",null,null,null,"-"]
[]
["電話番号",null,null,null,null,null,null,null,"-",null,null,null,null,"-"]
[]
["（注２）",null,"機構に対する通知内容等に関する照会先となる部署を記載してください。なお、機構との連絡担当部署を変更する場合には、別途"]
[null,null,"届出が必要となります。"]
[]
[]
[]
[]
["３.手数料請求書の配信先メールアドレス（注３）"]
["メールアドレス"]
[]
["（注３）",null,"手数料請求書は電子配信サービスeco Deliver Expressにて配信します。請求書の配信案内メールの宛先となるメールアドレス（部"]
[null,null,"署等で共有されているメールアドレスをお持ちの場合には、当該アドレスでの登録が可能です。）を記載してください。"]
[null,null,"なお、メールアドレスは電子配信サービス利用開始後、サイト上から変更・追加いただけます。"]
[null,null,null,null,null,null,null,null,null,null,null,null,null,null,null,null,null,null,null,null,null,null,null,null,null,null,null,null,null,null,null,null,null,null,null,"以　上"]
[]
[]
[]
[]
[]
[]
[]
[]
[]
["・当機構は、本書に記載された個人情報を、「社債、株式等の振替に関する法律」に基づき主務大臣から認可を受けた業務を円滑に遂行す\n　るため、利用させていただきます。\n・当機構の取り扱う個人情報、当機構の個人情報保護方針など当機構の個人情報保護に関する事項は、当機構ホームページに掲載されてお\n　りますので、適宜御参照ください。"]

{"sheet":"ツール処理シート","index":6,"n_rows":150,"n_cols":23,"rows_kept":150,"cut":false,"hidden":true,"merged":[[9,14,9,15],[9,16,9,19]]}
[]
[null,"＜基本情報＞"]
[null,"届出書名"]
[null,"対象E","法人/株式等発行者"]
[null,"Excel上データ開始行",13]
[null,"Excel上データ終了行",148]
[]
[null,"＜届出事項＞"]
[null,null,null,null,"ツール処理対象範囲",null,null,null,null,null,"共通参考情報",null,null,null,"目的地等参考情報"]
[null,"#","項目名","手入力項目フラグ","データ種別","登録先DB","行順序","列番号","登録値","備考","ソース種別","届出書上のExcelによる制御","ツール処理シート上のExcelによる制御","備考","CO",null,"マス管",null,null,null,"マス管条件必須時の条件","１届出書における最大届出数","備考"]
[]
[null,null,"＊届出書のツール読込シートに表示する項目名。","＊マスタ管理システムに手入力する際に必要となる可能性のある項目は〇。それ以外は-。","T：登録値の内容をそのまま（Null値はNull値として、Null以外は登録値を）CSV化する。（スルーのT。）\nN：登録値がNullの場合は、現在DBから値を採用する。登録値がNull以外の場合は、その値を採用する。（フラグ「なし」のN。）\nA：\"N\"と同じ処理を行い、さらに、登録値がNull以外の場合は、当該項目の直前に位置するフィールドに、\"*\"を入力する。（フラグ「あり」のA。）\nF：なにもしない。（フラグのF。）","＊COにおける登録先DBのDBコード。","＊同一のツール処理シートから複数のCO登録用レコードを生成する場合の、レコード識別用番号。","＊CO登録用CSVファイル上のフィールド順序。","＊実際に登録する値。補記が必要な項目はここで補記する。","自由記入欄","規定：原則規定値。場合によっては規定値と異なる値を設定する。\n届出：届出された内容または届出された内容を変換して取得するフラグ。\n補記：機構が補記する。\nコピー：設計情報上の他の登録値をコピーして充足する。","＊届出書上で、Excelの条件付書式等を利用して行う予定の制御内容。","＊ツール処理シート上で、Excelの関数又は条件付書式等を利用して行う予定の制御又はツール処理シート上に記載する規定値の内容","自由記入欄","データ長","対象DB","登録種別","対象E","データ長","属性","＊業務ではなく、あくまでマス管のシステム要件。","＊１届出書において届け出をさせる最大個数。主に口座関係の届出時に、口座番号が複数個届出される場合を想定。","自由記入欄"]
[null,{"$f":"ROW()-12","v":1},"COレコード番号","-","T","db26",1,1,null,null,"規定","届出非表示項目","規定値（\"\"(Null値))","COのDBを上書きする際に、対象レコードを特定するための項目。","-","-","対象外","-","-","-",null,1]
[null,{"$f":"ROW()-12","v":2},"CO登録日時","-","T","db26",1,2,null,null,"規定","届出非表示項目","規定値（\"\"(Null値))","COレコード番号を生かすために必要なCOデータベースのフィールド枠。","-","-","対象外","-","-","-",null,1]
[null,3,"CO登録者","-","T","db26",1,3,null,null,"規定","届出非表示項目","規定値（\"\"(Null値))","COレコード番号を生かすために必要なCOデータベースのフィールド枠。","-","-","対象外","-","-","-",null,1]
[null,4,"CO更新日時","-","T","db26",1,4,null,null,"規定","届出非表示項目","規定値（\"\"(Null値))","COレコード番号を生かすために必要なCOデータベースのフィールド枠。","-","-","対象外","-","-","-",null,1]
[null,5,"CO更新者","-","T","db26",1,5,null,null,"規定","届出非表示項目","規定値（\"\"(Null値))","COレコード番号を生かすために必要なCOデータベースのフィールド枠。","-","-","対象外","-","-","-",null,1]
[null,6,"データレコード識別区分","-","T","db26",1,6,600000,null,"規定","届出非表示項目","規定値（\"600000\"）",null,6,"法人","必須","法人",6,9,null,1]
[null,7,"操作区分","-","T","db26",1,7,"INS",null,"規定","届出非表示項目","規定値（\"INS\")",null,3,"法人","必須","法人",3,"Ca",null,1]
[null,8,"会社コード","〇","T","db26",1,8,{"$f":"IF(INDIRECT(\"補記シート!D18\")=\"\",\"\",INDIRECT(\"補記シート!D18\"))","v":""},null,"補記","届出非表示項目","[入力規則]\n・7桁\n・下２桁は00のみを許容",null,7,"法人","必須","法人",7,"C",null,1]
[null,9,"適用開始年月日（マス管用）","〇","T","db26",1,9,{"$f":"TEXT(CONCATENATE(その２!S21,'その２（131条１項の通知なし）'!S21),\"YYYYMMDD\")","v":""},null,"補記","届出非表示項目","[入力規則]\n・数字のみ\n・８桁",null,8,"法人","必須","法人",8,9,null,1]
[null,10,"更新区分","-","T","db26",1,10,1,null,"届出","[入力規則]\nプルダウンによる選択（新規or変更）","[関数]\n届出書上の該当箇所が「新規」なら1、「変更」なら2、ブランクならNull値を設定。",null,1,"法人","必須","法人",1,9,null,1]
[null,11,"項目変更フラグ（利用開始日（マス管用））","-","F","db26",1,11,null,null,"規定","届出非表示項目","規定値（\"\"(Null値))",null,1,"法人","任意","法人",1,"Cb",null,1]
[null,12,"利用開始年月日（マス管用）","〇","A","db26",1,12,{"$f":"TEXT(CONCATENATE(その２!S29,'その２（131条１項の通知なし）'!S27),\"YYYYMMDD\")","v":""},null,"届出","[入力規則]\n・数字のみ\n・８桁","[関数]\n届出書上の更新区分が「新規」なら、届出書上の「適用日」を転記する。「新規」以外の場合には、Null値とする。",null,8,"法人","条件必須","法人",8,9,"以下の条件を満たす場合、入力必須。\n・更新区分＝「1」（新規）\n・操作区分＝「INS」（登録）",1]
[null,13,"項目変更フラグ（利用終了年月日（マス管用））","-","F","db26",1,13,null,null,"規定","届出非表示項目","規定値（\"\"(Null値))",null,1,"法人","任意","法人",1,"Cb",null,1]
[null,14,"利用終了年月日（マス管用）","〇","A","db26",1,14,29991231,null,"規定","届出非表示項目","規定値（\"29991231\")","機構と完全に縁を切る場合にのみ本フィールドに29991231以外が適用されることを想定。ただし、その場合には人間の手作業によるオペレーションのため、本項目は規定値29991231を設定する以外には使用しない。",8,"法人","任意","法人",8,9,null,1]
[null,15,"項目変更フラグ（新会社コード）","-","F","db26",1,15,null,null,"規定","届出非表示項目","規定値（\"\"(Null値))",null,1,"法人","任意","法人",1,"Cb",null,1]
[null,16,"新会社コード","〇","A","db26",1,16,null,null,"補記","届出非表示項目","[入力規則]\n・7桁\n・下２桁は00のみを許容","・脱退対象の法人が脱退時に合併機能を利用する場合には、入力必須。\n・それ以外の場合は不要。",7,"法人","任意","法人",7,"C",null,1]
[null,17,"項目変更フラグ（組織名称）","-","F","db26",1,17,null,null,"規定","届出非表示項目","規定値（\"\"(Null値))",null,1,"法人","任意","法人",1,"Cb",null,1]
[null,18,"商号又は名称","〇","A","db26",1,18,{"$f":"DBCS(CONCATENATE(INDIRECT(\"その１!F22\"),INDIRECT(\"'その１（非上場株式用）'!F22\")))","v":""},null,"届出","[入力規則]\n全角100文字以内","[関数]\n届出書上の該当箇所を転記する。","「株式会社」等を含めて100文字以内。\nPSMSの一部参加形態（投資顧問）については、商号の後ろに形態（例：○○アセット（投資顧問））を記載し、同一法人につき複数の法人Eが保持されることとなる。\n【桁数について備考】\n元々30桁の運用制限を設ける予定だったが、正式名称を機械的に短縮することにより、マス管から連動されるHP制度参加者一覧や口座簿の名称（FIAMIはないが）への影響勘案し、運用制限を撤廃することとする。\n30桁を超過するのは主にFIAMIが想定されるが、間接口座管理機関であり、現行マスタのないSBCPシステム側では30桁超過しても空振りで問題ないと思慮。\nTMIで使用しているSB代理人名称については、コードと名称の紐づけを行う際の機能で30桁制限あるとのことだが、30桁名称の代理人銀行は存在しないので運用対応できる認識。",100,"法人","条件必須","法人",100,"N","以下を全て満たす場合、入力必須。\n・更新区分＝「1」(新規)\n・操作区分＝「INS」(登録)",1]
[null,19,"項目変更フラグ（組織略称）","-","F","db26",1,19,null,null,"規定","届出非表示項目","規定値（\"\"(Null値))",null,1,"法人","任意","法人",1,"Cb",null,1]
[null,20,"組織略称","〇","A","db26",1,20,null,null,"届出","[入力規則]\n全角8文字","[関数]\n届出書上の該当箇所を転記する。","全参加者に記載させる。",8,"法人","任意","法人",8,"N",null,1]
[null,21,"項目変更フラグ（組織英字名称）","-","F","db26",1,21,null,null,"規定","届出非表示項目","規定値（\"\"(Null値))",null,1,"法人","任意","法人",1,"Cb",null,1]
[null,22,"組織英字名称","〇","A","db26",1,22,null,null,"届出","[入力規則]\n・140桁以内\n・半角のみ","[関数]\n届出書上の該当箇所を転記する。","半角英大文字・数字・一部記号のみ許容\n一部記号は、次のものを許容（マスタ管理システムの文字種定義と同一。）\n+、-、,、:、.、(、)、/、'、?及び半角スペース ",140,"法人","任意","法人",140,"Ci",null,1]
[null,23,"項目変更フラグ（組織カナ名称）","-","F","db26",1,23,null,null,"規定","届出非表示項目","規定値（\"\"(Null値))",null,1,"法人","任意","法人",1,"Cb",null,1]
[null,24,"組織カナ名称","〇","A","db26",1,24,{"$f":"SUBSTITUTE(SUBSTITUTE(SUBSTITUTE(SUBSTITUTE(SUBSTITUTE(SUBSTITUTE(ASC(CONCATENATE(INDIRECT(\"その１!F21\"),INDIRECT(\"'その１（非上場株式用）'!F21\"))),\"ｶﾌﾞｼｷｶﾞｲｼｬ\",\"\"),\"ｶﾌﾞｼｷｶｲｼｬ\",\"\"),\" \",\"\"),\"(ｶ)\",\"\"),\"(ｶ\",\"\"),\"ｶ)\",\"\")","v":""},null,"届出","[入力規則]\n・200桁以内\n・半角のみ","[関数]\n届出書上の該当箇所を転記する。",null,"200\n（マス管に合わせる）","法人","条件必須","法人",200,"A","以下を全て満たす場合、入力必須。\n・更新区分＝「1」(新規)\n・操作区分＝「INS」(登録)",1]
[null,25,"項目変更フラグ（外株組織カナ略称）","-","F","db26",1,25,null,null,"規定","届出非表示項目","規定値（\"\"(Null値))",null,1,"法人","任意","法人",1,"Cb",null,1]
[null,26,"外株組織カナ略称","〇","A","db26",1,26,null,null,"届出","[入力規則]\n28桁","[関数]\n届出書上の該当箇所を転記する。",null,28,"法人","任意","法人",28,"Ch",null,1]
[null,27,"項目変更フラグ（本店所在地）","-","F","db26",1,27,null,null,"規定","届出非表示項目","規定値（\"\"(Null値))",null,1,"法人","任意","法人",1,"Cb",null,1]
[null,28,"本店所在地","〇","A","db26",1,28,{"$f":"CONCATENATE(INDIRECT(\"その１!F24\"),INDIRECT(\"'その１（非上場株式用）'!F26\"))","v":""},null,"届出","[入力規則]\n全角200文字以内","[関数]\n届出書上の該当箇所を転記する。","・建物名の取り扱いについては、追って検討（印鑑証明や登記事項証明の要否が未決であるため）","200\n（マス管に合わせる）","法人","任意","法人",200,"M",null,1]
[null,29,"項目変更フラグ（組織業種区分）","-","F","db26",1,29,null,null,"規定","届出非表示項目","規定値（\"\"(Null値))",null,1,"法人","任意","法人",1,"Cb",null,1]
[null,30,"組織業種区分","〇","A","db26",1,30,null,null,"補記","届出非表示項目","[入力規則]\n1桁",null,1,"法人","任意","法人",1,"Ca",null,1]
[null,31,"*組織業種区分名称","-","T","db26",1,31,null,null,"規定","届出非表示項目","規定値（\"\"(Null値))",null,"LU","LU","対象外"]
[null,32,"項目変更フラグ（BICコード）","-","F","db26",1,32,null,null,"規定","届出非表示項目","規定値（\"\"(Null値))",null,1,"法人","任意","法人",1,"Cb",null,1]
[null,33,"BICコード","〇","A","db26",1,33,null,null,"届出","[入力規則]\n8桁\n又は\n11桁","[関数]\n届出書上の該当箇所を転記する。",null,12,"法人","任意","法人",11,"Ca",null,1]
[null,34,"項目変更フラグ（口座管理機関コード）","-","F","db26",1,34,null,null,"規定","届出非表示項目","規定値（\"\"(Null値))",null,1,"法人","任意","法人",1,"Cb",null,1]
[null,35,"口座管理機関コード","〇","A","db26",1,35,null,null,"届出","[入力規則]\n5桁","[関数]\n届出書上の該当箇所を転記する。","コードが0から始まる場合を踏まえるとセルを文字列とする必要があるが、文字列だと「数字のみ」の制御をかけられないため、桁数のみ制御する。",5,"法人","任意","法人",5,9,null,1]
[null,36,"項目変更フラグ（代理人コード）","-","F","db26",1,36,null,null,"規定","届出非表示項目","規定値（\"\"(Null値))",null,1,"法人","任意","法人",1,"Cb",null,1]
[null,37,"代理人コード","〇","A","db26",1,37,null,null,"届出","[入力規則]\n5桁","[関数]\n届出書上の該当箇所を転記する。","コードが0から始まる場合を踏まえるとセルを文字列とする必要があるが、文字列だと「数字のみ」の制御をかけられないため、桁数のみ制御する。",5,"法人","任意","法人",5,9,null,1]
[null,38,"項目変更フラグ（受託会社コード）","-","F","db26",1,38,null,null,"規定","届出非表示項目","規定値（\"\"(Null値))",null,1,"法人","任意","法人",1,"Cb",null,1]
[null,39,"受託会社コード","〇","A","db26",1,39,null,null,"届出","[入力規則]\n5桁","[関数]\n届出書上の該当箇所を転記する。","コードが0から始まる場合を踏まえるとセルを文字列とする必要があるが、文字列だと「数字のみ」の制御をかけられないため、桁数のみ制御する。",5,"法人","任意","法人",5,9,null,1]
[null,40,"項目変更フラグ（統一金融機関コード）","-","F","db26",1,40,null,null,"規定","届出非表示項目","規定値（\"\"(Null値))",null,1,"法人","任意","法人",1,"Cb",null,1]
[null,41,"統一金融機関コード","〇","A","db26",1,41,null,null,"届出","[入力規則]\n4桁","[関数]\n届出書上の該当箇所を転記する。","コードが0から始まる場合を踏まえるとセルを文字列とする必要があるが、文字列だと「数字のみ」の制御をかけられないため、桁数のみ制御する。",4,"法人","任意","法人",4,9,null,1]
[null,42,"項目変更フラグ（利用会社コード）","-","F","db26",1,42,null,null,"規定","届出非表示項目","規定値（\"\"(Null値))",null,1,"法人","任意","法人",1,"Cb",null,1]
[null,43,"利用会社コード","〇","A","db26",1,43,null,null,"届出","[入力規則]\n8桁以内","[関数]\n届出書上の該当箇所を転記する。","コードが0から始まる場合を踏まえるとセルを文字列とする必要があるが、文字列だと「数字のみ」の制御をかけられないため、桁数のみ制御する。",8,"法人","任意","法人",8,"Ca",null,1]
[null,44,"項目変更フラグ（国際機関フラグ）","-","F","db26",1,44,null,null,"規定","届出非表示項目","規定値（\"\"(Null値))",null,1,"法人","任意","法人",1,"Cb",null,1]
[null,45,"国際機関フラグ","〇","A","db26",1,45,0,null,"規定","届出非表示項目","規定値（\"0\")",null,1,"法人","条件必須","法人",1,9,"以下を全て満たす場合、入力必須。\n・更新区分＝「1」(新規)\n・操作区分＝「INS」(登録)",1]
[null,46,"*法人番号","-","N","db26",1,46,null,null,"届出","[入力規則]\n13桁","[関数]\n届出書上の該当箇所を転記する。","・コードが0から始まる場合を踏まえるとセルを文字列とする必要があるが、文字列だと「数字のみ」の制御をかけられないため、桁数のみ制御する。\n・左記番号自体で法人の同定はしない(2018/11/8仮決定)\n次のいずれかの手段で正確性を確認する。\n・法人番号サイトに当該番号を入力、検索し、表示された内容と突合する。\n・同時に提出される証明書類に記載された「会社法人等番号」を元に法人番号を生成し、突合する方法。",13,"法人","対象外",null,null,null,null,1]
[null,47,"*GIIN","-","N","db26",1,47,null,null,"届出","[入力規則]\n6桁,5桁,2桁,3桁で分割入力","[関数]\n届出書上の該当箇所を転記し、カンマで結合する。","・IRSのサイト（https://apps.irs.gov/app/fatcaFfiList/flu.jsf）と突合。",19,"法人","対象外",null,null,null,null,1]
[null,48,"*組織英字略称","-","N","db26",1,48,null,null,"届出","[入力規則]\n28桁","[関数]\n届出書上の該当箇所を転記する。","・DTC宛List「CSD Participant List」用の項目\n・届出書に最大文字数（35文字）や、組織英字名称と同一になっても良い旨等を記載する想定",28,"法人","対象外",null,null,null,null,1]
[null,49,"*代表者役職名","-","N","db26",1,49,{"$f":"CONCATENATE(INDIRECT(\"その１!F26\"),INDIRECT(\"'その１（非上場株式用）'!F28\"))","v":""},null,"届出","[入力規則]\n半角カナ30桁","[関数]\n届出書上の該当箇所を転記する。","・CO上文字数は仮置き",30,"法人","対象外",null,null,null,null,1]
[null,50,"*代表者カナ役職名","-","N","db26",1,50,null,null,"届出","[入力規則]\n30桁","[関数]\n届出書上の該当箇所を転記する。","・CO上文字数は仮置き",30,"法人","対象外",null,null,null,null,1]
[null,51,"*代表者氏名","-","N","db26",1,51,{"$f":"CONCATENATE(INDIRECT(\"その１!X26\"),INDIRECT(\"'その１（非上場株式用）'!X28\"))","v":""},null,"届出","[入力規則]\n30桁","[関数]\n届出書上の該当箇所を転記する。","・CO上文字数は仮置き",30,"法人","対象外",null,null,null,null,1]
[null,52,"*代表者カナ氏名","-","N","db26",1,52,null,null,"届出","[入力規則]\n30桁","[関数]\n届出書上の該当箇所を転記する。","・CO上文字数は仮置き",30,"法人","対象外",null,null,null,null,1]
[null,53,"*在日支店所在地","-","N","db26",1,53,null,null,"届出","[入力規則]\n200桁","[関数]\n届出書上の該当箇所を転記する。","・CO上文字数は仮置き",200,"法人","対象外",null,null,null,null,1]
[null,54,"*設立地（country）","-","N","db26",1,54,null,null,"届出","[入力規則]\n全角50文字以内","[関数]\n届出書上の該当箇所を転記する。",null,50,"法人","対象外",null,null,null,null,1]
[null,55,"*制度外字の有無及び有の場合の置換方法","-","N","db26",1,55,null,null,"届出","[入力規則]\n50桁","[関数]\n届出書上の該当箇所を転記する。","・本項目の記載内容を元に、株通部において手オペを実施する。",50,"法人","対象外",null,null,null,null,1]
[null,56,"*マス管csv投入予定日","-","T","db26",1,56,{"$f":"IF(INDIRECT(\"補記シート!D19\")=\"\",\"\",INDIRECT(\"補記シート!D19\"))","v":""},null,"補記","届出非表示項目","[入力規則]\nYYYY/MM/DD",null,10,"法人","対象外",null,null,null,null,1]
[null,57,"*利用開始年月日（ＣＯ用）","-","N","db26",1,57,{"$f":"IF(I24=\"\",\"\",LEFT(I24,4)&\"/\"&MID(I24,5,2)&\"/\"&RIGHT(I24,2))","v":""},null,"コピー","届出非表示項目","[関数]\n#12の利用開始年月日がNull値でない場合には、#12の利用開始日8桁の適切な位置に/を挿入し、10桁の日付とする。\n#12の利用開始日がNull値の場合には、Null値を設定する。",null,10,"法人","対象外",null,null,null,null,1]
[null,58,"*レコード開始年月日（ＣＯ用）","-","T","db26",1,58,{"$f":"LEFT(I21,4)&\"/\"&MID(I21,5,2)&\"/\"&RIGHT(I21,2)","v":"//"},null,"コピー","届出非表示項目","[関数]\n#9の適用開始日の日付を取得し、YYYY/MM/DD形式で格納する。",null,10,"法人","対象外",null,null,null,null,1]
[null,59,"*レコード終了年月日（ＣＯ用）","-","T","db26",1,59,"2999-12-31",null,"規定","届出非表示項目","規定値（\"2999/12/31\")","変更時には、ツールの機能により本項目を規定値以外の値（直後の最新レコードの適用開始日の前日）に上書きする。",10,"法人","対象外",null,null,null,null,1]
[null,60,"*利用終了年月日（ＣＯ用）","-","T","db26",1,60,"2999-12-31",null,"規定","届出非表示項目","規定値（\"2999/12/31\")",null,10,"法人","対象外",null,null,null,null,1]
[null,{"$f":"ROW()-12","v":61},"COレコード番号",null,"T","db116",1,1,null,null,"規定","届出非表示項目","規定値（\"\"(Null値))","COのDBを上書きする際に、対象レコードを特定するための項目。","-","-","対象外","-","-","-",null,1]
[null,{"$f":"ROW()-12","v":62},"CO登録日時",null,"T","db116",1,2,null,null,"規定","届出非表示項目","規定値（\"\"(Null値))","COレコード番号を生かすために必要なCOデータベースのフィールド枠。","-","-","対象外","-","-","-",null,1]
[null,63,"CO登録者",null,"T","db116",1,3,null,null,"規定","届出非表示項目","規定値（\"\"(Null値))","COレコード番号を生かすために必要なCOデータベースのフィールド枠。","-","-","対象外","-","-","-",null,1]
[null,64,"CO更新日時",null,"T","db116",1,4,null,null,"規定","届出非表示項目","規定値（\"\"(Null値))","COレコード番号を生かすために必要なCOデータベースのフィールド枠。","-","-","対象外","-","-","-",null,1]
[null,65,"CO更新者",null,"T","db116",1,5,null,null,"規定","届出非表示項目","規定値（\"\"(Null値))","COレコード番号を生かすために必要なCOデータベースのフィールド枠。","-","-","対象外","-","-","-",null,1]
[null,66,"データレコード識別区分",null,"T","db116",1,6,690000,null,"規定","届出非表示項目","規定値（\"690000\")",null,6,"株発","必須","株発",6,"9",null,1]
[null,67,"操作区分",null,"T","db116",1,7,"INS",null,"規定","届出非表示項目","規定値（\"INS\")",null,3,"株発","必須","株発",3,"Ca",null,1]
[null,68,"会社コード","〇","T","db116",1,8,{"$f":"IF(INDIRECT(\"補記シート!D20\")=\"\",\"\",INDIRECT(\"補記シート!D20\"))","v":""},null,"補記","届出非表示項目","[入力規則]\n・数字7桁のみを許容\n・下２桁は00のみを許容",null,7,"株発","必須","株発",7,"C",null,1]
[null,69,"適用開始年月日（マス管用）","〇","T","db116",1,9,{"$f":"$I$21","v":""},null,"補記","届出非表示項目","[入力規則]\n数字８桁",null,8,"株発","必須","株発",8,"9",null,1]
[null,70,"更新区分",null,"T","db116",1,10,{"$f":"$I$22","v":1},null,"補記","届出非表示項目","[入力規則]\n数字1桁","「新規」なら1、「それ以外」なら2を設定。",1,"株発","必須","株発",1,"9",null,1]
[null,71,"項目変更フラグ（利用開始年月日）",null,"F","db116",1,11,null,null,"規定","届出非表示項目","規定値（\"\"(Null値))",null,1,"株発","任意","株発",1,"Cb",null,1]
[null,72,"利用開始年月日（マス管用）","〇","A","db116",1,12,{"$f":"$I$24","v":""},null,"補記","[入力規則]\n・数字のみ\n・８桁","[関数]\n届出書上の更新区分が「新規」なら、届出書上の「適用日」を転記する。「新規」以外の場合には、Null値とする。",null,8,"株発","条件必須","株発",8,"9","以下を全て満たす場合、入力必須。\n・更新区分=「1」（新規）\n・操作区分=「INS」（登録)",1]
[null,73,"項目変更フラグ（利用終了年月日）",null,"F","db116",1,13,null,null,"規定","届出非表示項目","規定値（\"\"(Null値))",null,1,"株発","任意","株発",1,"Cb",null,1]
[null,74,"利用終了年月日（マス管用）","〇","A","db116",1,14,29991231,null,"規定","届出非表示項目","規定値（\"29991231\")",null,8,"株発","任意","株発",8,"9",null,1]
[null,75,"項目変更フラグ（新会社コード）",null,"F","db116",1,15,null,null,"規定","届出非表示項目","規定値（\"\"(Null値))",null,1,"株発","任意","株発",1,"Cb",null,1]
[null,76,"新会社コード","〇","A","db116",1,16,null,null,"規定","届出非表示項目","規定値（\"\"(Null値))",null,7,"株発","任意","株発",7,"C",null,1]
[null,77,"項目変更フラグ（ETFJDR発行者コード）",null,"F","db116",1,17,null,null,"規定","届出非表示項目","規定値（\"\"(Null値))",null,1,"株発","任意","株発",1,"Cb",null,1]
[null,78,"ETFJDR発行者コード","〇","A","db116",1,18,null,null,"補記","届出非表示項目","[入力規則]\n数字5桁",null,5,"株発","任意","株発",5,"C",null,1]
[null,79,"項目変更フラグ（株式等発行者商品区分（株式等））",null,"F","db116",1,19,null,null,"規定","届出非表示項目","規定値（\"\"(Null値))",null,1,"株発","任意","株発",1,"Cb",null,1]
[null,80,"株式等発行者商品区分（株式等）","〇","A","db116",1,20,1,null,"補記","届出非表示項目","[入力規則]\n数字1桁\n\"0\"または\"1\"","株式等発行者商品区分（CB） 、株式等発行者商品区分（新株予約権等）のいずれか又は両方が1である場合、本項目は1にしなければならない。",1,"株発","条件必須","株発",7,"C","以下を全て満たす場合、入力必須。\n・更新区分=「1」（新規）\n・操作区分=「INS」（登録)",1]
[null,81,"項目変更フラグ（株式等発行者商品区分（ETFJDR））",null,"F","db116",1,21,null,null,"規定","届出非表示項目","規定値（\"\"(Null値))",null,1,"株発","任意","株発",1,"Cb",null,1]
[null,82,"株式等発行者商品区分（ETFJDR）","〇","A","db116",1,22,0,null,"補記","届出非表示項目","[入力規則]\n数字1桁\n\"0\"または\"1\"",null,1,"株発","条件必須","株発",7,"C","以下を全て満たす場合、入力必須。\n・更新区分=「1」（新規）\n・操作区分=「INS」（登録）",1,"当該法人がETFJDR発行者でなくなった場合（レアケース）には、フラグを0にする（手数料システムに悪影響が及ぶため。）"]
[null,83,"項目変更フラグ（株式等発行者商品区分（CB））",null,"F","db116",1,23,null,null,"規定","届出非表示項目","規定値（\"\"(Null値))",null,1,"株発","任意","株発",1,"Cb",null,1]
[null,84,"株式等発行者商品区分（CB） ","〇","A","db116",1,24,1,null,"補記","届出非表示項目","[入力規則]\n数字1桁\n\"0\"または\"1\"",null,1,"株発","条件必須","株発",1,"9","以下を全て満たす場合、入力必須。\n・更新区分=「1」（新規）\n・操作区分=「INS」（登録）",1]
[null,85,"項目変更フラグ（株式等発行者商品区分（新株予約権等））",null,"F","db116",1,25,null,null,"規定","届出非表示項目","規定値（\"\"(Null値))",null,1,"株発","任意","株発",1,"Cb",null,1]
[null,86,"株式等発行者商品区分（新株予約権等）","〇","A","db116",1,26,1,null,"補記","届出非表示項目","[入力規則]\n数字1桁\n\"0\"または\"1\"",null,1,"株発","条件必須","株発",1,"9","以下を全て満たす場合、入力必須。\n・更新区分=「1」（新規）\n・操作区分=「INS」（登録）",1]
[null,87,"項目変更フラグ（統合ＷＥＢ代行会社・会社コード）",null,"F","db116",1,27,null,null,"規定","届出非表示項目","規定値（\"\"(Null値))",null,1,"株発","任意","株発",1,"Cb",null,1]
[null,88,"統合ＷＥＢ代行会社・会社コード","〇","A","db116",1,28,null,null,"補記","届出非表示項目","[入力規則]\n数字7桁",null,7,"株発","任意","株発",7,"C",null,1]
[null,89,"項目変更フラグ（統合ＷＥＢ代行会社（予備）・会社コード）",null,"F","db116",1,29,null,null,"規定","届出非表示項目","規定値（\"\"(Null値))",null,1,"株発","任意","株発",1,"Cb",null,1]
[null,90,"統合ＷＥＢ代行会社（予備）・会社コード","〇","A","db116",1,30,null,null,"補記","届出非表示項目","[入力規則]\n数字7桁",null,7,"株発","任意","株発",7,"C",null,1]
[null,91,"項目変更フラグ（代理人０１・会社コード）",null,"F","db116",1,31,null,null,"規定","届出非表示項目","規定値（\"\"(Null値))",null,1,"株発","任意","株発",1,"Cb",null,1]
[null,92,"代理人０１・会社コード","〇","A","db116",1,32,null,null,"補記","届出非表示項目","[入力規則]\n数字7桁",null,7,"株発","任意","株発",7,"C",null,1]
[null,93,"項目変更フラグ（代理人０２・会社コード）",null,"F","db116",1,33,null,null,"規定","届出非表示項目","規定値（\"\"(Null値))",null,1,"株発","任意","株発",1,"Cb",null,1]
[null,94,"代理人０２・会社コード","〇","A","db116",1,34,null,null,"補記","届出非表示項目","[入力規則]\n数字7桁",null,7,"株発","任意","株発",7,"C",null,1]
[null,95,"項目変更フラグ（代理人０３・会社コード）",null,"F","db116",1,35,null,null,"規定","届出非表示項目","規定値（\"\"(Null値))",null,1,"株発","任意","株発",1,"Cb",null,1]
[null,96,"代理人０３・会社コード","〇","A","db116",1,36,null,null,"補記","届出非表示項目","[入力規則]\n数字7桁",null,7,"株発","任意","株発",7,"C",null,1]
[null,97,"項目変更フラグ（代理人０４・会社コード）",null,"F","db116",1,37,null,null,"規定","届出非表示項目","規定値（\"\"(Null値))",null,1,"株発","任意","株発",1,"Cb",null,1]
[null,98,"代理人０４・会社コード","〇","A","db116",1,38,null,null,"補記","届出非表示項目","[入力規則]\n数字7桁",null,7,"株発","任意","株発",7,"C",null,1]
[null,99,"項目変更フラグ（代理人０５・会社コード）",null,"F","db116",1,39,null,null,"規定","届出非表示項目","規定値（\"\"(Null値))",null,1,"株発","任意","株発",1,"Cb",null,1]
[null,100,"代理人０５・会社コード","〇","A","db116",1,40,null,null,"補記","届出非表示項目","[入力規則]\n数字7桁",null,7,"株発","任意","株発",7,"C",null,1]
[null,101,"項目変更フラグ（代理人０６・会社コード）",null,"F","db116",1,41,null,null,"規定","届出非表示項目","規定値（\"\"(Null値))",null,1,"株発","任意","株発",1,"Cb",null,1]
[null,102,"代理人０６・会社コード","〇","A","db116",1,42,null,null,"補記","届出非表示項目","[入力規則]\n数字7桁",null,7,"株発","任意","株発",7,"C",null,1]
[null,103,"項目変更フラグ（代理人０７・会社コード）",null,"F","db116",1,43,null,null,"規定","届出非表示項目","規定値（\"\"(Null値))",null,1,"株発","任意","株発",1,"Cb",null,1]
[null,104,"代理人０７・会社コード","〇","A","db116",1,44,null,null,"補記","届出非表示項目","[入力規則]\n数字7桁",null,7,"株発","任意","株発",7,"C",null,1]
[null,105,"項目変更フラグ（代理人０８・会社コード）",null,"F","db116",1,45,null,null,"規定","届出非表示項目","規定値（\"\"(Null値))",null,1,"株発","任意","株発",1,"Cb",null,1]
[null,106,"代理人０８・会社コード","〇","A","db116",1,46,null,null,"補記","届出非表示項目","[入力規則]\n数字7桁",null,7,"株発","任意","株発",7,"C",null,1]
[null,107,"項目変更フラグ（代理人０９・会社コード）",null,"F","db116",1,47,null,null,"規定","届出非表示項目","規定値（\"\"(Null値))",null,1,"株発","任意","株発",1,"Cb",null,1]
[null,108,"代理人０９・会社コード","〇","A","db116",1,48,null,null,"補記","届出非表示項目","[入力規則]\n数字7桁",null,7,"株発","任意","株発",7,"C",null,1]
[null,109,"項目変更フラグ（代理人１０・会社コード）",null,"F","db116",1,49,null,null,"規定","届出非表示項目","規定値（\"\"(Null値))",null,1,"株発","任意","株発",1,"Cb",null,1]
[null,110,"代理人１０・会社コード","〇","A","db116",1,50,null,null,"補記","届出非表示項目","[入力規則]\n数字7桁",null,7,"株発","任意","株発",7,"C",null,1]
[null,111,"*組織名称",null,"T","db116",1,51,null,null,"規定","届出非表示項目","規定値（\"\"(Null値))",null,"ルックアップ","株発",null,null,null,null,null,1]
[null,112,"*選任する代理人名称1",null,"T","db116",1,52,null,null,"規定","届出非表示項目","規定値（\"\"(Null値))",null,"ルックアップ","株発",null,null,null,null,null,1]
[null,113,"*選任する代理人名称2",null,"T","db116",1,53,null,null,"規定","届出非表示項目","規定値（\"\"(Null値))",null,"ルックアップ","株発",null,null,null,null,null,1]
[null,114,"*選任する代理人名称3",null,"T","db116",1,54,null,null,"規定","届出非表示項目","規定値（\"\"(Null値))",null,"ルックアップ","株発",null,null,null,null,null,1]
[null,115,"*選任する代理人名称4",null,"T","db116",1,55,null,null,"規定","届出非表示項目","規定値（\"\"(Null値))",null,"ルックアップ","株発",null,null,null,null,null,1]
[null,116,"*選任する代理人名称5",null,"T","db116",1,56,null,null,"規定","届出非表示項目","規定値（\"\"(Null値))",null,"ルックアップ","株発",null,null,null,null,null,1]
[null,117,"*選任する代理人名称6",null,"T","db116",1,57,null,null,"規定","届出非表示項目","規定値（\"\"(Null値))",null,"ルックアップ","株発",null,null,null,null,null,1]
[null,118,"*選任する代理人名称7",null,"T","db116",1,58,null,null,"規定","届出非表示項目","規定値（\"\"(Null値))",null,"ルックアップ","株発",null,null,null,null,null,1]
[null,119,"*選任する代理人名称8",null,"T","db116",1,59,null,null,"規定","届出非表示項目","規定値（\"\"(Null値))",null,"ルックアップ","株発",null,null,null,null,null,1]
[null,120,"*選任する代理人名称9",null,"T","db116",1,60,null,null,"規定","届出非表示項目","規定値（\"\"(Null値))",null,"ルックアップ","株発",null,null,null,null,null,1]
[null,121,"*選任する代理人名称10",null,"T","db116",1,61,null,null,"規定","届出非表示項目","規定値（\"\"(Null値))",null,"ルックアップ","株発",null,null,null,null,null,1]
[null,122,"*選任する代理人コード1",null,"T","db116",1,62,null,null,"届出","[入力規則]\n数字5桁","[関数]\n届出書の該当箇所を転記する。",null,5,"株発",null,null,null,null,null,1]
[null,123,"*選任する代理人コード2",null,"T","db116",1,63,null,null,"届出","[入力規則]\n数字5桁","[関数]\n届出書の該当箇所を転記する。",null,5,"株発",null,null,null,null,null,1]
[null,124,"*選任する代理人コード3",null,"T","db116",1,64,null,null,"届出","[入力規則]\n数字5桁","[関数]\n届出書の該当箇所を転記する。",null,5,"株発",null,null,null,null,null,1]
[null,125,"*選任する代理人コード4",null,"T","db116",1,65,null,null,"届出","[入力規則]\n数字5桁","[関数]\n届出書の該当箇所を転記する。",null,5,"株発",null,null,null,null,null,1]
[null,{"$f":"ROW()-12","v":126},"*選任する代理人コード5",null,"T","db116",1,66,null,null,"届出","[入力規則]\n数字5桁","[関数]\n届出書の該当箇所を転記する。",null,5,"株発",null,null,null,null,null,1]
[null,127,"*選任する代理人コード6",null,"T","db116",1,67,null,null,"届出","[入力規則]\n数字5桁","[関数]\n届出書の該当箇所を転記する。",null,5,"株発",null,null,null,null,null,1]
[null,128,"*選任する代理人コード7",null,"T","db116",1,68,null,null,"届出","[入力規則]\n数字5桁","[関数]\n届出書の該当箇所を転記する。",null,5,"株発",null,null,null,null,null,1]
[null,129,"*選任する代理人コード8",null,"T","db116",1,69,null,null,"届出","[入力規則]\n数字5桁","[関数]\n届出書の該当箇所を転記する。",null,5,"株発",null,null,null,null,null,1]
[null,130,"*選任する代理人コード9",null,"T","db116",1,70,null,null,"届出","[入力規則]\n数字5桁","[関数]\n届出書の該当箇所を転記する。",null,5,"株発",null,null,null,null,null,1]
[null,131,"*選任する代理人コード10",null,"T","db116",1,71,null,null,"届出","[入力規則]\n数字5桁","[関数]\n届出書の該当箇所を転記する。",null,5,"株発",null,null,null,null,null,1]
[null,132,"*マス管csv投入予定日",null,"T","db116",1,72,{"$f":"IF(INDIRECT(\"補記シート!D21\")=\"\",\"\",INDIRECT(\"補記シート!D21\"))","v":""},null,"補記","届出非表示項目","[入力規則]\nYYYY/MM/DD",null,10,"株発",null,null,null,null,null,1]
[null,133,"*利用開始年月日",null,"N","db116",1,73,{"$f":"$I$69","v":""},null,"コピー","届出非表示項目","[関数]\n#XXの利用開始年月日がNull値でない場合には、#XXの利用開始日8桁の適切な位置に/を挿入し、10桁の日付とする。\n#XXの利用開始日がNull値の場合には、Null値を設定する。",null,10,"株発",null,null,null,null,null,1]
[null,134,"*レコード開始年月日",null,"T","db116",1,74,{"$f":"$I$70","v":"//"},null,"コピー","届出非表示項目","[関数]\n#XXXの適用開始日の日付を取得し、YYYY/MM/DD形式で格納する。",null,10,"株発",null,null,null,null,null,1]
[null,135,"*レコード終了年月日",null,"T","db116",1,75,"2999-12-31",null,"規定","届出非表示項目","規定値（\"2999/12/31\")",null,10,"株発",null,null,null,null,null,1]
[null,136,"*利用終了年月日",null,"T","db116",1,76,"2999-12-31",null,"規定","届出非表示項目","規定値（\"2999/12/31\")",null,10,"株発",null,null,null,null,null,1]
[null,137,"以下余白","以下余白","以下余白","以下余白",1,"以下余白","以下余白",null,"以下余白","以下余白","以下余白",null,"以下余白","以下余白","以下余白","以下余白","以下余白","以下余白","以下余白","以下余白"]
[null,138]

{"sheet":"CSV出力用","index":7,"n_rows":60,"n_cols":6,"rows_kept":60,"cut":false,"hidden":true,"merged":[]}
["項番","項目名","機構報登録項目ID","設定する値","形式","関数の補足説明"]
[1,"有価証券区分","SecuritiesTYP","001","固定値","-"]
[2,"通知事項","CAID",200,"固定値","-"]
[3,"掲載日","PublishDate",null,"ブランク指定","-"]
[4,"完全子会社数","WhollyOwnedSubsidiaryNum",null,"ブランク指定","-"]
[5,"銘柄コード","@CODE",null,"ブランク指定","-"]
[6,"会社コード","@COM_CODE_001_200",null,"ブランク指定","-"]
[7,"ISINコード","@JP_CODE_001_200",null,"ブランク指定","-"]
[8,"有価証券区分","@DIVISION_001_200","株式","固定値","-"]
[9,"商品種別","@SHOHIN_CODE_001_200","株式","固定値","-"]
[10,"会社名（漢字）","@CO_NAME_001_200",{"$f":"+CONCATENATE(その１!F22,'その１（非上場株式用）'!F22)","v":""},"関数","参照元：その１「商号」"]
[11,"会社名（カナ）","@CO_NAME_KANA_001_200",{"$f":"+SUBSTITUTE(SUBSTITUTE(CONCATENATE(その１!F21,'その１（非上場株式用）'!F21),\"カブシキガイシャ\",\"\"),\"カブシキカイシャ\",\"\")","v":""},"関数","参照元：その１「商号フリガナ」 / 値に「カブシキガイシャ」または「カブシキカイシャ」が含まれる場合、それを削除"]
[12,"銘柄名称","@NAME_NEW_LISTING",{"$f":"+SUBSTITUTE(CONCATENATE(その１!S32,'その１（非上場株式用）'!S35),\"株式会社\",\"（株）\")","v":""},"関数","D11セルに「株式会社」が含まれる場合「（株）」に置換える"]
[13,"銘柄略称","@SHORT_NAME_001_200",null,"ブランク指定","-"]
[14,"法人番号","@HOUJIN_NUMBER_001_200",{"$f":"+SUBSTITUTE(CONCATENATE(その１!F28,'その１（非上場株式用）'!F30),\"　\",\"\")","v":""},"関数","参照元：その１「法人番号」"]
[15,"株式の内容","@NAIYO_STOCK_001_200",{"$f":"+CONCATENATE(その１!S34,'その１（非上場株式用）'!S37)","v":""},"関数","参照元：その１「株式の種類」"]
[16,"口座通知取次ぎの締切日","@KOZA_TUUTI_SIME_DAY_001_200",{"$f":"TEXT(CONCATENATE(その２!S27,'その２（131条１項の通知なし）'!S25),\"YYYY/MM/DD\")","v":""},"関数","参照元：その２「事務上の口座通知取次ぎ受付締切日」"]
[17,"取扱開始日","@START_DAY_001_200",{"$f":"TEXT(CONCATENATE(その２!S29,'その２（131条１項の通知なし）'!S27),\"YYYY/MM/DD\")","v":""},"関数","参照元：その２「取扱開始日」"]
[18,"一定の日","@ITTEI_DAY_001_200",{"$f":"TEXT(CONCATENATE(その２!S31,'その２（131条１項の通知なし）'!S29),\"YYYY/MM/DD\")","v":""},"関数","参照元：その２「一定の日」"]
[19,"新規記録日","@KIROKU_DAY_001_200",{"$f":"TEXT(CONCATENATE(その２!S33,'その２（131条１項の通知なし）'!S31),\"YYYY/MM/DD\")","v":""},"関数","参照元：その２「新規記録日」"]
[20,"上場日","@LIST_DAY_001_200",{"$f":"TEXT(CONCATENATE(その２!S35,'その２（131条１項の通知なし）'!S33),\"YYYY/MM/DD\")","v":""},"関数","参照元：その２「上場日」"]
[21,"東京証券取引所","@MARKET_001_200",{"$f":"IF(SUBSTITUTE(CONCATENATE(その２!S42,'その２（131条１項の通知なし）'!S40),\"　\",\"\")<>\"\",\"東京\",\"\")","v":""},"関数","参照元：その２「上場する金融商品取引所」"]
[22,"名古屋証券取引所","@MARKET_001_200",{"$f":"IF(SUBSTITUTE(CONCATENATE(その２!S44,'その２（131条１項の通知なし）'!S42),\"　\",\"\")<>\"\",\"名古屋\",\"\")","v":""},"関数","参照元：その２「上場する金融商品取引所」"]
[23,"福岡証券取引所","@MARKET_001_200",{"$f":"IF(SUBSTITUTE(CONCATENATE(その２!S46,'その２（131条１項の通知なし）'!S44),\"　\",\"\")<>\"\",\"福岡\",\"\")","v":""},"関数","参照元：その２「上場する金融商品取引所」"]
[24,"札幌証券取引所","@MARKET_001_200",{"$f":"IF(SUBSTITUTE(CONCATENATE(その２!S48,'その２（131条１項の通知なし）'!S46),\"　\",\"\")<>\"\",\"札幌\",\"\")","v":""},"関数","参照元：その２「上場する金融商品取引所」"]
[25,"基準日直後の上場有無","@JOJOUMU_001_200",{"$f":"IF(D17<>D18,\"有\",\"無\")","v":"無"},"関数","D16セルとD17セルが同じ値の場合は「無」、異なる値の場合は「有」を出力"]
[26,"決算期","@SETTLE_MMDD_001_200",{"$f":"SUBSTITUTE(SUBSTITUTE(TEXT(CONCATENATE(その２!S57,'その２（131条１項の通知なし）'!S55),\"MM/DD\"),\"2月末日\",\"02/99\"),\"２月末日\",\"02/99\")","v":""},"関数","参照元：その２「決算期」 / MM/DD形式で出力 /「2月末日」と入力されていた場合は、「02/99」を出力"]
[27,"中間決算期","@HALF_SETTLE_MMDD_001_200",{"$f":"SUBSTITUTE(SUBSTITUTE(TEXT(CONCATENATE(その２!S59,'その２（131条１項の通知なし）'!S57),\"MM/DD\"),\"2月末日\",\"02/99\"),\"２月末日\",\"02/99\")","v":""},"関数","参照元：その２「中間決算期」 / MM/DD形式で出力 /「2月末日」と入力されていた場合は、「02/99」を出力"]
[28,"定時総会基準日","@TEIJI_SOKAI_DAY_001_200",{"$f":"SUBSTITUTE(SUBSTITUTE(TEXT(CONCATENATE(その２!S63,'その２（131条１項の通知なし）'!S61),\"MM/DD\"),\"2月末日\",\"02/99\"),\"２月末日\",\"02/99\")","v":""},"関数","参照元：その２「定款に定める定時株主総会に係る基準日」 / MM/DD形式で出力 /「2月末日」と入力されていた場合は、「02/99」を出力"]
[29,"期末配当","@JOYO_HAITO_KIMATU_001_200",{"$f":"SUBSTITUTE(SUBSTITUTE(TEXT(CONCATENATE(その２!S67,'その２（131条１項の通知なし）'!S65),\"MM/DD\"),\"2月末日\",\"02/99\"),\"２月末日\",\"02/99\")","v":""},"関数","参照元：その２「・期末配当」 / MM/DD形式で出力 /「2月末日」と入力されていた場合は、「02/99」を出力"]
[30,"中間配当","@JOYO_HAITO_CYUKAN_001_200",{"$f":"SUBSTITUTE(SUBSTITUTE(TEXT(CONCATENATE(その２!S69,'その２（131条１項の通知なし）'!S67),\"MM/DD\"),\"2月末日\",\"02/99\"),\"２月末日\",\"02/99\")","v":""},"関数","参照元：その２「・中間配当」 / MM/DD形式で出力 /「2月末日」と入力されていた場合は、「02/99」を出力"]
[31,"第１四半期配当","@DIVIDEND_FIRST_1_001_200",{"$f":"SUBSTITUTE(SUBSTITUTE(TEXT(CONCATENATE(その２!S71,'その２（131条１項の通知なし）'!S69),\"MM/DD\"),\"2月末日\",\"02/99\"),\"２月末日\",\"02/99\")","v":""},"関数","参照元：その２「・第１四半期配当」 / MM/DD形式で出力 /「2月末日」と入力されていた場合は、「02/99」を出力"]
[32,"第３四半期配当","@DIVIDEND_FIRST_3_001_200",{"$f":"SUBSTITUTE(SUBSTITUTE(TEXT(CONCATENATE(その２!S73,'その２（131条１項の通知なし）'!S71),\"MM/DD\"),\"2月末日\",\"02/99\"),\"２月末日\",\"02/99\")","v":""},"関数","参照元：その２「・第３四半期配当」 / MM/DD形式で出力 /「2月末日」と入力されていた場合は、「02/99」を出力"]
[33,"四半期総通知請求（１Ｑ・３Ｑ）の有無","@QUARTERTOTALNOTICE_001_200",{"$f":"IF(SUBSTITUTE(CONCATENATE(その２!BE10,'その２（131条１項の通知なし）'!BE10),\"　\",\"\")<>\"\",\"有\",\"無\")","v":"無"},"関数","参照元：その２「四半期会計期間の～」の「有」のセルがブランク以外だった場合は「有」を出力、ブランクの場合は「無」を出力"]
[34,"第１四半期","@SETTLE_MMDD_OTH1_001_200",{"$f":"SUBSTITUTE(SUBSTITUTE(TEXT(CONCATENATE(その２!BH14,'その２（131条１項の通知なし）'!BH14),\"MM/DD\"),\"2月末日\",\"02/99\"),\"２月末日\",\"02/99\")","v":""},"関数 ","参照元：その２「対象となる四半期会計期間の末日」の① / MM/DD形式で出力 /「2月末日」と入力されていた場合は、「02/99」を出力"]
[35,"第３四半期","@SETTLE_MMDD_OTH2_001_200",{"$f":"SUBSTITUTE(SUBSTITUTE(TEXT(CONCATENATE(その２!BQ14,'その２（131条１項の通知なし）'!BQ14),\"MM/DD\"),\"2月末日\",\"02/99\"),\"２月末日\",\"02/99\")","v":""},"関数","参照元：その２「対象となる四半期会計期間の末日」の② / MM/DD形式で出力 /「2月末日」と入力されていた場合は、「02/99」を出力"]
[36,"第２四半期（中間）","@SETTLE_MMDD_OTH3_001_200",null,"ブランク指定","-"]
[37,"中間決算期＜中間配当が未設定の場合のみ＞","@HALF_SETTLE_HAITONASHI_001_200",null,"ブランク指定","-"]
[38,"単元株式数","@UNIT_001_200",{"$f":"CONCATENATE(その２!BE26,'その２（131条１項の通知なし）'!BE26)","v":""},"関数","参照元：その２「単元株式数」"]
[39,"売渡制度の有無","@URIWATASHI_001_200",{"$f":"IF(SUBSTITUTE(CONCATENATE(その２!BE28,'その２（131条１項の通知なし）'!BE28),\"　\",\"\")<>\"\",\"有\",\"無\")","v":"無"},"関数","参照元：その２「単元未満株式の売渡制度の有無」 / 「有」のセルがブランク以外だった場合は「有」を出力、ブランクの場合は「無」を出力"]
[40,"売渡請求の取次受付開始日","@TORITUGI_URIWATASHI_001_200",{"$f":"IF(SUBSTITUTE(CONCATENATE(その２!BE40,'その２（131条１項の通知なし）'!BI45),\"　\",\"\")<>\"\",D21,\"\")","v":""},"関数","参照元：その２「上場直後からの売渡請求の受付可否」 / 「可」のセルがブランク以外だった場合はD21セルの値を出力"]
[41,"上場直後からの売渡請求の受付可否","@UKETUKE_URIWATASHI_001_200",{"$f":"IF(SUBSTITUTE(CONCATENATE(その２!BE32,'その２（131条１項の通知なし）'!BE32),\"　\",\"\")<>\"\",\"可\",\"否\")","v":"否"},"関数","参照元：その２「上場直後からの売渡請求の受付可否」 / 「可」のセルがブランク以外だった場合は「可」を出力、ブランクの場合は「否」を出力"]
[42,"株主名簿管理人コード","@TA_CODE__001_200",{"$f":"SUBSTITUTE(SUBSTITUTE(CONCATENATE(その２!BE55,'その２（131条１項の通知なし）'!BE55),\"　\",\"\"),\"株式会社\",\"\")","v":""},"関数","参照元：その２「株主名簿管理人」 / 値に「株式会社」が含まれる場合、それを削除"]
[43,"特別口座開設先口座管理機関コード","@TOKUBETSU_KOZA_CODE__001_200",{"$f":"SUBSTITUTE(SUBSTITUTE(CONCATENATE(その２!BE57,'その２（131条１項の通知なし）'!BE57),\"　\",\"\"),\"株式会社\",\"\")","v":""},"関数","参照元：その２「特別口座を開設する口座管理機関」 / 値に「株式会社」が含まれる場合、それを削除"]
[44,"外国人保有制限有無","@FOREIGN_001_200",{"$f":"IF(CONCATENATE(その２!BE59,'その２（131条１項の通知なし）'!BE59)<>\"\",\"有\",\"無\")","v":"無"},"関数","参照元：その２「外国人保有制限銘柄への該当」 / 「有」のセルがブランク以外だった場合は「有」を出力、ブランクの場合は「無」を出力"]
[45,"外国人保有制限銘柄（航空法）","@FOREIGN_FLY_001_200",{"$f":"IF(CONCATENATE(その２!$AV$67,'その２（131条１項の通知なし）'!$AV$67)=\"航空法\",\"有\",\"無\")","v":"無"},"関数","参照元：その２「制限を行う根拠法令」 / 値が「航空法」の場合は「有」を出力、それ以外の場合は「無」を出力 / 届出書には該当の法令の条数まで記載することとなっており、現状、この関数は機能してない。"]
[46,"外国人保有制限銘柄（放送法）","@FOREIGN_BRO_001_200",{"$f":"IF(CONCATENATE(その２!$AV$67,'その２（131条１項の通知なし）'!$AV$67)=\"航空法\",\"有\",\"無\")","v":"無"},"関数","参照元：その２「制限を行う根拠法令」 / 値が「放送法」の場合は「有」を出力、それ以外の場合は「無」を出力 / 届出書には該当の法令の条数まで記載することとなっており、現状、この関数は機能してない。"]
[47,"外国人保有制限銘柄（NTT法）","@FOREIGN_NTT_001_200",{"$f":"IF(CONCATENATE(その２!$AV$67,'その２（131条１項の通知なし）'!$AV$67)=\"航空法\",\"有\",\"無\")","v":"無"},"関数","参照元：その２「制限を行う根拠法令」 / 値が「ＮＴＴ法」の場合は「有」を出力、それ以外の場合は「無」を出力/ 届出書には該当の法令の条数まで記載することとなっており、現状、この関数は機能してない。「ＮＴＴ法」は正式名称ではない。"]
[48,"外国人保有制限銘柄（その他）","@FOREIGN_OTH_001_200",{"$f":"IF(CONCATENATE(その２!$AV$67,'その２（131条１項の通知なし）'!$AV$67)=\"航空法\",\"有\",\"無\")","v":"無"},"関数","D46セルが「有」でD47セル・D48セル・D49セルがすべて「無」の場合は「有」を出力、それ以外の場合は「無」を出力"]
[49,"新規記録予定株式数","@KISOKU_AMOUNT_001_200",{"$f":"その３!S29","v":0},"関数","参照元：その３「既発行の株式数」"]
[50,"株券喪失登録の有無","@SOSHITSU_001_200",{"$f":"IF(その３!S33=0,\"無\",\"有\")","v":"無"},"関数","参照元：その３「株券喪失登録されている株式数」"]
[51,"募集株式数","@BOSHU_001_200",{"$f":"IF(その３!S49<>\"\",その３!S49,\"\")","v":""},"関数","参照元：その３「発行新株式数」"]
[52,"申込期間（開始日）","@MOUSHIKOMI_START_DAY_001_200",{"$f":"IF(その３!S51<>\"\",TEXT(その３!S51,\"YYYY/MM/DD\"),\"\")","v":""},"関数","参照元：その３「申込期日（申込期間）」（自）"]
[53,"申込期間（終了日）","@MOUSHIKOMI_END_DAY_001_200",{"$f":"IF(その３!AD51<>\"\",TEXT(その３!AD51,\"YYYY/MM/DD\"),\"\")","v":""},"関数","参照元：その３「申込期日（申込期間）」（至）"]
[54,"払込期日","@HARAIKOMI_START_DAY_001_200",{"$f":"IF(その３!S53<>\"\",TEXT(その３!S53,\"YYYY/MM/DD\"),\"\")","v":""},"関数","参照元：その３「払込期日」"]
[55,"発行時DVP方式","@DVP_001_200",{"$f":"IF(その３!S55=\"○\",\"ＤＶＰ方式\",\"非ＤＶＰ方式\")","v":"非ＤＶＰ方式"},"関数","参照元：その３「発行時DVP方式の利用の有無」 / 「有」のセルが「○」の場合は「ＤＶＰ方式」を出力、ブランクの場合は「非ＤＶＰ方式」を出力"]
[56,"引受主幹事証券会社コード","@MAIN_KANJI_CODE_001_200",{"$f":"SUBSTITUTE(その３!S57,\"株式会社\",\"\")","v":""},"関数","参照元：その３「引受主幹事証券会社」 / 値に「株式会社」が含まれている場合、それを削除"]
[57,"払込取扱銀行コード","@PAY_BANK_CODE_001_200",{"$f":"SUBSTITUTE(その３!S61,\"株式会社\",\"\")","v":""},"関数","参照元：その３「引受主幹事証券会社」"]
[58,"ゆうちょ銀行口座の指定可否","@YUCHO_RIYO_001_200","002","固定値","-"]
["END"]

{"sheet":"補記シート","index":8,"n_rows":218,"n_cols":11,"rows_kept":218,"cut":false,"hidden":true,"merged":[]}
[]
[]
[]
[]
[]
[]
[]
[]
[]
[]
[]
["補記シート"]
[]
[]
[]
[]
["項目名","登録先DB名称","登録先DB\nコード","参加室補記データ","入力する値の説明",null,"ＳＢ機構加入者","シス投入データ",null,"項目名","他部署等補記データ"]
["会社コード","法人","db26",null,"7桁で記載、下２桁は00のみを許容",null,"会社コード"]
["*マス管csv投入予定日","法人","db26",null,"YYYY/MM/DD形式で記載",null,"適用開始年月日"]
["会社コード","株発行者","db116",null,"7桁で記載、下２桁は00のみを許容",null,"統合ＷＥＢ代行会社会社コード"]
["*マス管csv投入予定日","株発行者","db116",null,"YYYY/MM/DD形式で記載",null,"統合ＷＥＢ代行会社予備会社コード"]
[]
[]
[null,null,null,null,null,null,"ＣＰ機構加入者","シス投入データ"]
[null,null,null,null,null,null,"会社コード"]
[null,null,null,null,null,null,"適用開始年月日"]
[null,null,null,null,null,null,"統合ＷＥＢ代行会社会社コード"]
[null,null,null,null,null,null,"統合ＷＥＢ代行会社予備会社コード"]
[]
[]
[null,null,null,null,null,null,"投信機構加入者","シス投入データ"]
[null,null,null,null,null,null,"会社コード"]
[null,null,null,null,null,null,"適用開始年月日"]
[null,null,null,null,null,null,"銘柄情報計算会社会社コード"]
[]
[]
[null,null,null,null,null,null,"口座系","シス投入データ"]
[null,null,null,null,null,null,"会社コード"]
[null,null,null,null,null,null,"口座系番号"]
[null,null,null,null,null,null,"適用開始年月日"]
[null,null,null,null,null,null,"統合ＷＥＢ代行会社会社コード"]
[null,null,null,null,null,null,"統合ＷＥＢ代行会社予備会社コード"]
[]
[]
[null,null,null,null,null,null,"株式等口座","シス投入データ"]
[null,null,null,null,null,null,"会社コード"]
[null,null,null,null,null,null,"区分口座コード"]
[null,null,null,null,null,null,"適用開始年月日"]
[null,null,null,null,null,null,"接続会社利用フラグ"]
[null,null,null,null,null,null,"ＭＪ夜間バッチ結果配信フラグ"]
[null,null,null,null,null,null,"口座振替計算会社会社コード"]
[null,null,null,null,null,null,"株主通知計算会社会社コード"]
[null,null,null,null,null,null,"元利金計算会社会社コード"]
[null,null,null,null,null,null,"統合ＷＥＢ代行会社会社コード"]
[null,null,null,null,null,null,"統合ＷＥＢ代行会社予備会社コード"]
[null,null,null,null,null,null,"加入者ＷＥＢ代行会社会社コード"]
[]
[]
[null,null,null,null,null,null,"外株口座","シス投入データ"]
[null,null,null,null,null,null,"会社コード"]
[null,null,null,null,null,null,"区分口座コード"]
[null,null,null,null,null,null,"適用開始年月日"]
[null,null,null,null,null,null,"計算会社会社コード"]
[]
[]
[null,null,null,null,null,null,"ＳＢ口座","シス投入データ"]
[null,null,null,null,null,null,"会社コード"]
[null,null,null,null,null,null,"区分口座コード"]
[null,null,null,null,null,null,"適用開始年月日"]
[null,null,null,null,null,null,"接続会社利用フラグ"]
[null,null,null,null,null,null,"ＭＪ夜間バッチ結果配信フラグ"]
[null,null,null,null,null,null,"口座振替計算会社会社コード"]
[null,null,null,null,null,null,"元利金計算会社会社コード"]
[null,null,null,null,null,null,"銘柄情報計算会社会社コード"]
[]
[]
[null,null,null,null,null,null,"ＣＰ口座","シス投入データ"]
[null,null,null,null,null,null,"会社コード"]
[null,null,null,null,null,null,"区分口座コード"]
[null,null,null,null,null,null,"適用開始年月日"]
[null,null,null,null,null,null,"接続会社利用フラグ"]
[null,null,null,null,null,null,"ＭＪ夜間バッチ結果配信フラグ"]
[null,null,null,null,null,null,"計算会社会社コード"]
[]
[]
[null,null,null,null,null,null,"投信口座","シス投入データ"]
[null,null,null,null,null,null,"会社コード"]
[null,null,null,null,null,null,"区分口座コード"]
[null,null,null,null,null,null,"適用開始年月日"]
[null,null,null,null,null,null,"接続会社利用フラグ"]
[null,null,null,null,null,null,"ＭＪ夜間バッチ結果配信フラグ"]
[null,null,null,null,null,null,"口座振替計算会社会社コード"]
[null,null,null,null,null,null,"統合ＷＥＢ代行会社会社コード"]
[null,null,null,null,null,null,"統合ＷＥＢ代行会社予備会社コード"]
[]
[]
[null,null,null,null,null,null,"株式等代理人","シス投入データ"]
[null,null,null,null,null,null,"会社コード"]
[null,null,null,null,null,null,"適用開始年月日"]
[null,null,null,null,null,null,"接続会社利用フラグ"]
[null,null,null,null,null,null,"口座振替計算会社会社コード"]
[null,null,null,null,null,null,"社債権者計算会社会社コード"]
[null,null,null,null,null,null,"元利金計算会社会社コード"]
[null,null,null,null,null,null,"統合ＷＥＢ代行会社会社コード"]
[null,null,null,null,null,null,"統合ＷＥＢ代行会社予備会社コード"]
[]
[]
[null,null,null,null,null,null,"ＳＢ代理人","シス投入データ"]
[null,null,null,null,null,null,"会社コード"]
[null,null,null,null,null,null,"適用開始年月日"]
[null,null,null,null,null,null,"接続会社利用フラグ"]
[null,null,null,null,null,null,"元利金計算会社会社コード"]
[null,null,null,null,null,null,"銘柄情報計算会社会社コード"]
[null,null,null,null,null,null,"統合ＷＥＢ代行会社会社コード"]
[null,null,null,null,null,null,"統合ＷＥＢ代行会社予備会社コード"]
[]
[]
[null,null,null,null,null,null,"ＣＰ代理人","シス投入データ"]
[null,null,null,null,null,null,"会社コード"]
[null,null,null,null,null,null,"適用開始年月日"]
[null,null,null,null,null,null,"接続会社利用フラグ"]
[]
[]
[null,null,null,null,null,null,"株式等資金決済会社","シス投入データ"]
[null,null,null,null,null,null,"会社コード"]
[null,null,null,null,null,null,"適用開始年月日"]
[null,null,null,null,null,null,"資金決済会社用接続会社利用フラグ"]
[null,null,null,null,null,null,"計算会社会社コード"]
[null,null,null,null,null,null,"資金決済会社用統合ＷＥＢ代行会社会社コード"]
[null,null,null,null,null,null,"資金決済会社用統合ＷＥＢ代行会社予備会社コード"]
[null,null,null,null,null,null,"払込取扱銀行用接続会社利用フラグ"]
[null,null,null,null,null,null,"払込取扱銀行用統合ＷＥＢ代行会社会社コード"]
[null,null,null,null,null,null,"払込取扱銀行用統合ＷＥＢ代行会社予備会社コード"]
[]
[]
[null,null,null,null,null,null,"ＳＢ資金決済会社","シス投入データ"]
[null,null,null,null,null,null,"会社コード"]
[null,null,null,null,null,null,"適用開始年月日"]
[null,null,null,null,null,null,"接続会社利用フラグ"]
[null,null,null,null,null,null,"計算会社会社コード"]
[]
[]
[null,null,null,null,null,null,"ＣＰ資金決済会社","シス投入データ"]
[null,null,null,null,null,null,"会社コード"]
[null,null,null,null,null,null,"適用開始年月日"]
[null,null,null,null,null,null,"接続会社利用フラグ"]
[]
[]
[null,null,null,null,null,null,"投信資金決済会社","シス投入データ"]
[null,null,null,null,null,null,"会社コード"]
[null,null,null,null,null,null,"適用開始年月日"]
[null,null,null,null,null,null,"接続会社利用フラグ"]
[null,null,null,null,null,null,"統合ＷＥＢ代行会社会社コード"]
[null,null,null,null,null,null,"統合ＷＥＢ代行会社予備会社コード"]
[]
[]
[null,null,null,null,null,null,"投信受託会社","シス投入データ"]
[null,null,null,null,null,null,"会社コード"]
[null,null,null,null,null,null,"適用開始年月日"]
[null,null,null,null,null,null,"接続会社利用フラグ"]
[null,null,null,null,null,null,"ＭＪ夜間バッチ結果配信フラグ"]
[null,null,null,null,null,null,"計算会社会社コード"]
[null,null,null,null,null,null,"統合ＷＥＢ代行会社会社コード"]
[null,null,null,null,null,null,"統合ＷＥＢ代行会社予備会社コード"]
[]
[]
[null,null,null,null,null,null,"株式等発行者","シス投入データ"]
[null,null,null,null,null,null,"会社コード"]
[null,null,null,null,null,null,"適用開始年月日"]
[null,null,null,null,null,null,"統合ＷＥＢ代行会社会社コード"]
[null,null,null,null,null,null,"統合ＷＥＢ代行会社予備会社コード"]
[]
[]
[null,null,null,null,null,null,"ＣＰ発行者","シス投入データ"]
[null,null,null,null,null,null,"会社コード"]
[null,null,null,null,null,null,"適用開始年月日"]
[null,null,null,null,null,null,"接続会社利用フラグ"]
[]
[]
[null,null,null,null,null,null,"投信発行者","シス投入データ"]
[null,null,null,null,null,null,"会社コード"]
[null,null,null,null,null,null,"適用開始年月日"]
[null,null,null,null,null,null,"接続会社利用フラグ"]
[null,null,null,null,null,null,"ＭＪ夜間バッチ結果配信フラグ"]
[null,null,null,null,null,null,"計算会社会社コード"]
[null,null,null,null,null,null,"統合ＷＥＢ代行会社会社コード"]
[null,null,null,null,null,null,"統合ＷＥＢ代行会社予備会社コード"]
[]
[]
[null,null,null,null,null,null,"ＴＡ","シス投入データ"]
[null,null,null,null,null,null,"会社コード"]
[null,null,null,null,null,null,"適用開始年月日"]
[null,null,null,null,null,null,"接続会社利用フラグ"]
[null,null,null,null,null,null,"計算会社会社コード"]
[null,null,null,null,null,null,"統合ＷＥＢ代行会社会社コード"]
[null,null,null,null,null,null,"統合ＷＥＢ代行会社予備会社コード"]
[]
[]
[null,null,null,null,null,null,"株式事務取扱機関","シス投入データ"]
[null,null,null,null,null,null,"会社コード"]
[null,null,null,null,null,null,"適用開始年月日"]
[null,null,null,null,null,null,"計算会社会社コード"]
[]
[]
[null,null,null,null,null,null,"決済照合利用会社","シス投入データ"]
[null,null,null,null,null,null,"会社コード"]
[null,null,null,null,null,null,"適用開始年月日"]
[null,null,null,null,null,null,"国内取引株式・ＣＢ接続会社会社コード"]
[null,null,null,null,null,null,"国内取引株式貸借接続会社会社コード"]
[null,null,null,null,null,null,"国内取引国債接続会社会社コード"]
[null,null,null,null,null,null,"国内取引一般債接続会社会社コード"]
[null,null,null,null,null,null,"国内取引短期社債接続会社会社コード"]
[null,null,null,null,null,null,"国内取引先物・オプション接続会社会社コード"]
[null,null,null,null,null,null,"国内取引投資信託接続会社会社コード"]
[null,null,null,null,null,null,"非居住者取引株式・ＣＢ接続会社会社コード"]
[null,null,null,null,null,null,"非居住者取引国債接続会社会社コード"]
[null,null,null,null,null,null,"非居住者取引一般債接続会社会社コード"]
[null,null,null,null,null,null,"非居住者取引短期社債接続会社会社コード"]

{"sheet":"特殊ケース","index":9,"n_rows":19,"n_cols":2,"rows_kept":19,"cut":false,"hidden":false,"merged":[[18,1,18,10],[1,1,1,10],[2,1,2,10],[7,1,7,10],[8,1,8,10]]}
[]
[null,"●振替法第131条第１項の通知を行わない場合"]
[null,"振替法第131条第１項の通知を行わない場合には、ご提出いただく「株式等振替制度参加に係る届出書（その２）」の様式が異なります。以下の「振替法第131条第１項の通知を行わない場合」ボタンを押下し、表示されたシートに必要事項をご入力ください。"]
[]
[]
[]
[]
[null,"●非上場株式について届出を行う場合"]
[null,"非上場株式について届出を行う場合には、「株式等振替制度参加に係る届出書（その１）」の様式が異なります。以下の「非上場株式について届出を行う」ボタンを押下し、表示されたシートに必要事項をご入力ください。"]
[]
[]
[]
[]
[]
[]
[]
[]
[]
[null,"ご不明な点等ありましたら、当機構（振替業務部　銘柄管理グループ 03-3661-1836)までお問い合わせください。"]

{"sheet":"プルダウン","index":10,"n_rows":25,"n_cols":2,"rows_kept":25,"cut":false,"hidden":true,"merged":[]}
["　"]
["□"]
["■"]
[]
["　"]
["○"]
[]
[]
[]
[]
["株式会社ＳＭＢＣ信託銀行"]
["株式会社アイ・アールジャパン"]
["東京証券代行株式会社"]
["日本証券代行株式会社"]
["みずほ信託銀行株式会社"]
["三井住友信託銀行株式会社"]
["三菱ＵＦＪ信託銀行株式会社"]
[]
[]
["【その１用】"]
["普通株式"]
["種類株式"]
[]
["【その２用】"]
["請求理由","四半期末時点における議決権の状況等の株主に関する情報を、ホームページ等において適切に開示するため。"]